{"text_format":"2","workbook":"xlsx","n_sheets":13,"sheets":["Inicio","Sectores y subsectores","Otros (energía), combustibles","Transporte","Otros (energía), E. eléctrica","Ferm. entérica, G. de estiércol","Emisiones de N2O","Quema de biomasa","Cultivo de arroz","Tratamiento de Residuos Sólidos","Tratamiento Aguas Residuales","Resultados Resumen","Tablas y Gráficas"],"not_rendered":{"charts":7,"images":8,"macros":0,"external_links":0,"defined_names":13,"comments":0,"pivot_tables":0},"unopened":[],"bounds":{"document_bytes":16777216,"sheet_cells":100000,"run_cost":"one","rows_first":2000,"rows_last":500,"rows_between":2000,"halvings":0,"cell_chars":16384,"cell_head_chars":4096},"cells_cut":0,"cells_raw":0,"read":"whole","date_system":"1900"}

{"sheet":"Inicio","index":0,"n_rows":127,"n_cols":3,"rows_kept":127,"cut":false,"hidden":false,"merged":[[109,1,109,2],[124,1,124,2],[125,1,125,2],[126,1,126,2],[85,1,85,2],[86,1,86,2],[91,1,91,2],[98,1,98,2],[104,1,104,2],[108,1,108,2],[83,1,83,2],[37,1,37,2],[39,1,39,2],[45,1,45,2],[47,1,47,2],[53,1,53,2],[61,1,61,2],[63,1,63,2],[65,1,65,2],[76,1,76,2],[78,1,78,2],[82,1,82,2],[35,1,35,2],[4,1,4,2],[5,1,5,2],[7,1,7,2],[8,1,8,2],[9,1,9,2],[11,1,11,2],[13,1,13,2],[25,1,25,2],[26,1,26,2],[33,1,33,2],[34,1,34,2]]}
[]
[]
[null,null,"Anexo 7. Orientación para el desarrollo de inventario municipal \nde Gases y Compuestos de Efecto Invernadero "]
[]
[null,"Objetivo"]
[null,"La herramienta para elaboración del Inventario Municipal de GyCEI que acompaña esta guía tiene como objetivo orientar al usuario sobre el alcance, principios de contabilidad, recopilación de información, cálculo de emisiones y reporte de las fuentes estudiadas."]
[]
[null,"Comentarios para el uso de este anexo"]
[null,"El inventario de Gases y Compuestos de Efecto Invernadero es el primer paso de la planeación climática, al facilitar la identificación de las principales fuentes de emisiones provenientes de las diversas actividades que suceden en un territorio y tiempo específicos. Además, puede ser un instrumento de gestión pública como parte del diseño, priorización e implementación de acciones de mitigación para tener políticas eficientes. El gobierno del estado de Jalisco cuenta con un inventario estatal que actualmente toma como año base 2014, el cual puede consultarse como referencia para la elaboración de los inventarios municipales en la siguiente liga :"]
[null,"https://semadet.jalisco.gob.mx/gobernanza-ambiental/cambio-climatico/inventario-de-compuestos-y-gases-de-efecto-invernadero-cygei"]
[]
[null,"A continuación, se describen algunas notas importantes que detallan la lógica bajo la cual fue construida la presente herramienta, así como recomendaciones orientadas a apoyar la toma de decisión al momento de elaborar los inventarios municipales."]
[]
[null,"Notas sobre las referencias metodológicas:"]
[null,"•","La cuantificación de los GEI toma como base la metodología del IPCC (2006) para los inventarios nacionales de Gases de Efecto Invernadero y que se encuentra disponible en:"]
[null,null,"http://www.ipcc-nggip.iges.or.jp/public/2006gl/spanish/index.html"]
[null,"•","Esta herramienta trata de aportar al esfuerzo innovador nacional de reportar los compuestos de efecto invernadero, en específico el Carbono Negro (CN), para lo cual se toma como referencia la metodología de cálculo propuesta por el gobierno federal, disponible en: "]
[null,null,"http://www.semarnat.gob.mx/sites/default/files/documentos/cicc/acuerdo_que_establece_las_particularidades_tecnicas_y_las_formulas_para_la_aplicacion_de_metodologias.pdf"]
[null,"•","La presente herramienta ofrece recomendaciones acerca de los siguientes instrumentos:"]
[null,"•","Protocolo Global para Inventarios de Emisión de Gases de Efecto Invernadero a Escala Comunitaria (GPC,por sus siglas en inglés); fuentes y alcances cubiertos por el GPC.  Disponible en:  "]
[null,"•","Las hojas de cálculo del Inventario de GyCEI del estado de Jalisco en los subsectores “Transporte”, “Emisiones de óxido nitroso”, “Tratamiento de aguas residuales” y “Manejo de residuos sólidos”."]
[null,null,"http://www.ghgprotocol.org/sites/default/files/ghgp/standards/GHGP_GPC%20%28Spanish%29.pdf"]
[null,"•","Formato para estimaciones de GyCEI, COA, WEB_RENE; particularidades técnicas de varios sectores y subsectores. Disponibles en: "]
[null,null,"www.semarnat.gob.mx/temas/cicc/registro-nacional-de-emisiones-rene"]
[]
[null,"Notas importantes sobre las categorías y subcategorías del inventario:"]
[null,"Como punto de partida, se debe definir un alcance del inventario en cuanto al área geográfica, periodo de tiempo, gases y fuentes de emisión. Con el objetivo de seleccionar eficientemente los límites de estudio, se propone la siguiente lógica, que divide el trabajo en categorías y subcategorías específicas para los municipios tomando como referencia:"]
[null,"a)","El alcance espacial de las emisiones de GEI."]
[null,"b)","Las atribuciones que apunta la Ley General de Cambio Climático (LGCC) a escala municipal (Artículo 9).[i]"]
[null,"c)","Las facultades municipales que asientan las Fracciones III, IV, y V del Artículo 115 de la Constitución Política de los Estados Unidos Mexicanos.[ii]"]
[null,"d)","Áreas prioritarias identificadas para los municipios en la Ley Estatal para la Acción ante el Cambio Climático."]
[null,"e)","La facilidad para que los municipios accedan a la información.   "]
[]
[null,"Tomando como referencia el GPC (disponible en:"]
[null,"http://www.ghgprotocol.org/sites/default/files/ghgp/standards/GHGP_GPC%20%28Spanish%29.pdf)"]
[null,"el alcance espacial de las emisiones de GEI se puede categorizar en tres niveles: aquéllas que se generan dentro de la ciudad (alcance 1); las que se generan indirectamente por el uso de la electricidad, vapor y/o calefacción/refrigeración suministrada en red (alcance 2), y las generadas fuera de la ciudad (alcance 3)"]
[]
[null,"Con el fin de homologar esta herramienta con el GPC,se considera el enfoque “marco según la ciudad”, el cual considera las fuentes de emisión claves producidas en el municipio de estudio, y puede abarcar los tres niveles de alcance según el caso. La tabla 1, “Sectores y subsectores”, resume el alcance y categorías bajo el análisis propuesto.  "]
[]
[null,"Por otro lado, las cinco categorías establecidas en las directrices del IPCC (2006) para los inventarios nacionales de gases de efecto invernadero, son:"]
[null,"1)","Energía"]
[null,"2)","Procesos industriales"]
[null,"3)","Agricultura, Silvicultura y Otros Usos de la Tierra (AFOLU, por siglas en inglés)"]
[null,"4)","Desechos"]
[null,"5)","Otros"]
[null,"Estas categorías se dividen en subcategorías, según la tabla 1, “Sectores y subsectores”."]
[]
[null,"Considerando las atribuciones que define la Ley General de Cambio Climático para los municipios en su Artículo 9, referente al tema de inventarios, las siguientes áreas pueden ser compatibles:"]
[null,"•","Prestación de servicios de agua potable y saneamiento"]
[null,"•","Ordenamiento ecológico local y desarrollo urbano"]
[null,"•","Manejo de residuos sólidos municipales (la cual coincide con una subcategoría “Desechos”, en las Directrices del IPCC)"]
[null,"•","Transporte (la cual coincide con una subcategoría “Energía”, en las directrices del IPCC)."]
[]
[null,"A su vez, las Fracciones III, IV, y V del Artículo 115 de la Constitución Mexicana señalan que los municipios tienen a su cargo las siguientes funciones y servicios públicos, los cuales se relacionan en materia de cambio climático:"]
[null,"•","Agua potable, alcantarillado, tratamiento y disposición de sus aguas residuales"]
[null,"•","Alumbrado público"]
[null,"•","Limpia, recolección, traslado, tratamiento y disposición final de residuos"]
[null,"•","Mercados y centrales de abasto"]
[null,"•","Calles, parques , jardines, y su equipamiento"]
[null,"•","Seguridad pública, policía preventiva municipal y tránsito"]
[]
[null,"Sumado a lo anterior, y para fomentar el cumplimiento del Artículo 31 de la Ley Estatal para la Acción ante el Cambio Climático (LEACC), en el que se menciona que uno de los objetivos específicos de mitigación es promover la reducción de emisiones en la prestación de servicios públicos y la operación de edificios públicos, se propone también reportar las emisiones provenientes del consumo de energía eléctrica y de combustibles en las operaciones de los gobiernos municipales. Estas emisiones corresponderían al alcance 2, sobre energía suministrada en red, según el GPC."]
[]
[null,"Otros elementos considerados en el análisis de las subcategorías a integrar son la accesibilidad a la información, la calidad de la misma y la facilidad de manejo. Se ha identificado que uno de los mayores obstáculos para el desarrollo de inventarios de GyCEI en los municipios del estado de Jalisco es el acceso a la información; la mayoría de los datos de actividad no se encuentran desagregados por municipio, quedando sólo a nivel estatal o información general nacional. Con este criterio se revisaron las subcategorías que los municipios, a través de sus inventarios y medidas, pueden apoyar al gobierno estatal y federal en la implementación de acciones.[iii]"]
[]
[null,"Las subcategorías que se detectaron con estas cualidades son:"]
[null,"•","Ganadería (fermentación entérica y gestión del estiércol)"]
[null,"•","Tierras de cultivo"]
[null,"•","Quema de biomasa"]
[null,"•","Emisiones directas e indirectas de N2O de los suelos gestionados"]
[null,"•","Cultivo de arroz"]
[null,"•","Eliminación de desechos sólidos"]
[null,"•","Tratamiento biológico de los desechos sólidos"]
[null,"•","Incineración e incineración abierta de desechos"]
[null,"•","Tratamiento y eliminación de aguas residuales"]
[]
[null,"En materia de energía, varias subcategorías no son consideradas por ser atribución directa del gobierno federal o por no contar con información desagregada por municipio. Se puede ver la referencia en la tabla 1, “Sectores y subsectores”. De igual forma, para esta herramienta se propone descartar las subcategorías de “Procesos industriales” por ser de atribución de la federación o del gobierno estatal, y por ser limitado el acceso a su información. Estas subcategorías se podrán agregar en caso de que cuente con información suficiente."]
[]
[null,"Para las estimaciones de Carbono Negro se retoman las subcategorías trabajadas en el inventario estatal, y son:"]
[null,"•","Transporte"]
[null,"•","Quema de biomasa"]
[]
[null,"Recomendaciones finales:"]
[null,"Las subcategorías que podrán reportarse desde los inventarios municipales para GEI son:"]
[]
[null,"Sector/subsector"]
[null,"Energía"]
[null,"•","Emisiones provenientes del consumo de energía eléctrica y de combustibles en las operaciones de los gobiernos municipales"]
[null,"•","Prestación de servicios de agua potable y saneamiento"]
[null,"•","Transporte"]
[]
[null,"AFOLU"]
[null,"•","Ganadería (fermentación entérica y gestión del estiércol)"]
[null,"•","Tierras de cultivo"]
[null,"•","Quema de biomasa"]
[null,"•","Emisiones directas e indirectas de N2O de los suelos gestionados"]
[null,"•","Cultivo de arroz"]
[]
[null,"Desechos"]
[null,"•","Eliminación de desechos sólidos"]
[null,"•","Tratamiento biológico de los desechos sólidos"]
[null,"•","Incineración e incineración abierta de desechos"]
[null,"•","Tratamiento y eliminación de aguas residuales"]
[]
[null,"Las subcategorías que podrán reportarse desde los inventarios municipales para Carbono Negro son:"]
[null,"•","Transporte"]
[null,"•","Quema de biomasa"]
[]
[null,"Recomendaciones para el uso de la herramienta:"]
[null,"A continuación, se presentan algunas recomendaciones que los municipios podrán seguir y que facilitarán el uso de la herramienta y la conformación del inventario."]
[null,"•","La herramienta se diseñó en formato Excel para facilitar el uso en equipos de cómputo que cuenten con paquetería Office."]
[null,"•","Cada hoja de cálculo presenta una subcategoría diferente."]
[null,"•","Para facilitar el llenado se presenta un código de colores:"]
[null,"•","Verde: son las celdas que tendrán que llenarse;"]
[null,"•","Gris: información que tendrá que revisarse para verificar que se tiene el dato más actualizado (generalmente es información que se actualiza cada tres años o con una periodicidad poco frecuente);"]
[null,"•","Azul: celdas que se actualizan automáticamente y se recomienda no modificar."]
[null,"•","Rojo: presenta el resultado de las emisiones de esa subcategoría."]
[null,"•","Los datos de actividad tendrán que consultarse en fuentes oficiales de las dependencias (municipales, estatales y federales)."]
[null,"•","La solicitud de información para obtener los datos de actividad deberá realizarse de forma anticipada. Se recomienda trabajar con la información disponible; es importante no retrasar el proceso de elaboración del inventario por información faltante."]
[null,"•","Las hojas de Excel están diseñadas para trabajarse con las unidades correspondientes, tanto de entrada como de salida."]
[null,"•","La herramienta ayuda a reportar las emisiones por categoría o por gas."]
[null,"•","Para facilitar la comparación con los inventarios estatal y nacional, se recomienda reportar las emisiones de GEI en gigagramos de CO2equivalente (Gg CO2e) y de CN en toneladas de Carbono Negro (t CN)."]
[null,"•","Las emisiones de GEI y CN tendrán que presentarse por separado."]
[]
[null,"[i]Diario Oficial de la Federación, 2018. Ley General de Cambio Climático de los Estados Unidos Mexicanos. Última reforma: 13 de junio de 2018."]
[null,"[ii] Diario Oficial de la Federación, 2017. Constitución Política de los Estados Unidos Mexicanos. Última reforma: 15 de septiembre de 2017."]
[null,"[iii]Encuesta realizada a los consultores que han elaborado los PMCC de Jalisco, 2017. Elaboración propia."]

{"sheet":"Sectores y subsectores","index":1,"n_rows":53,"n_cols":13,"rows_kept":53,"cut":false,"hidden":false,"merged":[[6,2,12,2],[13,2,15,2],[6,1,18,1],[2,1,2,12],[3,1,3,12],[16,2,18,2],[4,7,4,9],[5,1,5,3],[51,1,52,1],[29,2,34,2],[43,2,44,2],[48,2,49,2],[19,1,26,1],[27,2,28,2],[35,2,39,2],[40,2,42,2],[27,1,39,1],[40,1,44,1],[45,1,50,1]]}
[]
[]
[null,"Análisis de sectores y subsectores a ser incluidos en el Inventario\n de Gases de Efecto Invernadero"]
[null,"En esta hoja se realiza un análisis de los sectores y subsectores que aparecen en diferentes metodologías, y se hace una relación con los que se recomienda utilizar en la presente guía.\nEn las columnas A, B y C aparecen los sectores y subsectores de la metodología del IPCC (2006).\nEn la columna D se especifican los sectores y subsectores que los municipios deben atender según la Constitución Política de México y la Ley General de Cambio Climático (LGCC).\nEn la columna E se hace una revisión de la información  accesible para los municipios para el desarrollo de inventarios de GEI.\nEn la columna F se identifican los subsectores en los cuales se cree pertinente el cálculo de Carbón Negro (CN), además del cálculo de GEI.\nEn las columnas G, H e I se revisan los subsectores que se trabajan en el Protocolo Global para Inventarios de Emisión de Gases de Efecto Invernadero a Escala Comunitaria y los diferentes alcances que manejan.\nEn la columna J se especifican los subsectores cubiertos en la presente herramienta.\nEn la columna K se hace referencia a la hoja de cálculo que debe llenarse para conocer las emisiones de cada sector abordado en esta herramienta.\nEn la columna L se encuentran algunas observaciones que pueden facilitar el uso de esta herramienta."]
[{"$nulls":7},"Protocolo Global para Inventarios de Emisión de Gases de Efecto Invernadero  a Escala Comunitaria"]
[null,"Sectores y subsectores (según metodología IPCC, 2006)",null,null,"Artículo 115 de la Constitución Mexicana, Artículo 9 de la LGCC, Artículo 31 de la LEACC","Accesibilidad de la información para GEI","Cálculo de CN","Alcance 1","Alcance 2","Alcance 3","Subsectores cubiertos en la herramienta","Hoja de cálculo de referencia","Observaciones"]
[null,"1 - Energía","   1.A - Actividades de quema de combustible","      1.A.1 - Industrias de la energía",null,null,null,"X"]
[null,null,null,"      1.A.2 - Industrias manufactureras y de la construcción"]
[null,null,null,"      1.A.3 - Transporte","LGCC: Transporte público de pasajeros en su ámbito jurisdiccional.\nLEACC: Consumo de combustibles en las operaciones de los gobiernos municipales.","SÍ","SÍ","X","X","X","SÍ","Transporte/Otros (energía), combustibles","Para calcular las emisiones por transporte hay dos opciones (sólo se puede elegir una de ellas para evitar doble contabilidad):\na) Hoja de \"Transporte\".\nb) Hoja de \"Otros (energía), combustibles\".\nLa primera se utiliza cuando sólo se tiene el dato del volumen de combustible utilizado en el municipio; la segunda aplica cuando se conoce el parque vehicular en el municipio.\nProbablemente la mayoría de los municipios tendrá información para utilizar la primera opción."]
[null,null,null,"      1.A.4 - Otros sectores (edificios residenciales)",null,null,null,"X","X","X"]
[null,null,null,"      1.A.4 - Otros sectores (edificios e instalaciones comerciales e institucionales)","Constitución: Alumbrado público.\nLEACC: Consumo de energía eléctrica y de combustibles en las operaciones de los gobiernos municipales.",null,null,"X","X","X","SÍ","Otros (energía), E. eléctrica","En esta hoja se trabaja con datos de las actividad referentes al alumbrado público y las operaciones de los edificios e instalaciones del municipio."]
[null,null,null,"      1.A.4 - Otros sectores (actividades agrícolas, de silvicultura y de pesca)","LGCC: Prestación de servicios de agua potable y saneamiento.","SÍ",null,"X","X","X"]
[null,null,null,"      1.A.5 - No especificados",null,null,null,"X","X","X"]
[null,null,"   1.B - Emisiones fugitivas","      1.B.1 - Combustibles sólidos",null,null,null,"X"]
[null,null,null,"      1.B.2 - Petróleo y gas natural",null,null,null,"X"]
[null,null,null,"      1.B.3 - Otras emisiones provenientes de la producción de energía"]
[null,null," 1.C - Transporte y almacenamiento de bióxido de carbono","      1.C.1 - Transporte de CO₂ "]
[null,null,null,"      1.C.2 - Inyección y almacenamiento"]
[null,null,null,"      1.C.3 - Otros"]
[null,"2 - Procesos industriales","   2.A - Industria de los minerales",{"$nulls":4},"X"]
[null,null,"   2.B - Industria química",{"$nulls":4},"X"]
[null,null,"   2.C - Industria de los metales",{"$nulls":4},"X"]
[null,null," 2.D - Uso de productos no energéticos de combustibles y de solvente ",{"$nulls":4},"X"]
[null,null,"   2.E - Industria electrónica",{"$nulls":4},"X"]
[null,null,"   2.F - Usos de productos como sustitutos de las SAO",{"$nulls":4},"X"]
[null,null,"   2.G - Manufactura y uso de otros productos",{"$nulls":4},"X"]
[null,null," 2.H - Otros",{"$nulls":4},"X"]
[null,"3 - Agricultura, Silvicultura y Otros Usos de la Tierra","   3.A - Ganadería","      3.A.1 - Fermentación entérica",null,"SÍ",null,"X",null,null,"SÍ","Fermentación entérica/Gestión de estiércol"]
[null,null,null,"      3.A.2 - Gestión del estiércol",null,"SÍ",null,"X",null,null,"SÍ","Fermentación entérica/Gestión de estiércol"]
[null,null,"   3.B - Tierra","      3.B.1 - Tierras forestales",null,null,null,"X"]
[null,null,null,"      3.B.2 - Tierras de cultivo",null,null,null,"X",null,null,"SÍ","Emisiones de N₂O"]
[null,null,null,"      3.B.3 - Pastizales",null,null,null,"X"]
[null,null,null,"      3.B.4 - Humedales",null,null,null,"X"]
[null,null,null,"      3.B.5 - Asentamientos","LGCC: Ordenamiento ecológico local y desarrollo urbano.","SÍ",null,"X"]
[null,null,null,"      3.B.6 - Otras tierras",null,null,null,"X"]
[null,null,"3.C - Fuentes agregadas y fuentes de emisión de CO₂ en la tierra","      3.C.1 - Emisiones de la quema de biomasa",null,"SÍ","SÍ","X",null,null,"SÍ","Quema de biomasa"]
[null,null,null,"      3.C.2 - Encalado",null,null,null,"X"]
[null,null,null,"      3.C.3 - Aplicación de urea",null,null,null,"X",null,null,"SÍ","Emisiones de N₂O"]
[null,null,null,"      3.C.4 - Emisiones directas de N₂O de los suelos gestionados",null,"SÍ",null,"X",null,null,"SÍ","Emisiones de N₂O"]
[null,null,null,"      3.C.5 - Emisiones indirectas de N₂O de los suelos gestionados",null,"SÍ",null,"X",null,null,"SÍ","Emisiones de N₂O"]
[null,"3 - Agricultura, Silvicultura y Otros Usos de la Tierra","3.C - Fuentes agregadas y fuentes de emisión de CO₂ en la tierra","      3.C.6 - Emisiones indirectas de N₂O resultantes de la gestión del estiércol",null,"SÍ",null,"X",null,null,"SÍ","Emisiones de N₂O"]
[null,null,null,"      3.C.7 - Cultivo de arroz",null,"SÍ",null,"X",null,null,"SÍ","Cultivo de arroz"]
[null,null,null,"      3.C.8 - Otros",null,null,null,"X"]
[null,null,"   3.D - Otros","      3.D.1 - Productos de madera recolectada"]
[null,null,null,"      3.D.2 - Otros"]
[null,"4 - Desechos","   4.A - Eliminación de desechos sólidos",null,"LGCC: Manejo de residuos sólidos municipales.\nConstitución: Disposición final de residuos.","SÍ",null,"X",null,"X","SÍ","Tratamiento de residuos sólidos"]
[null,null,"   4.B - Tratamiento biológico de los desechos sólidos",null,"LGCC: Manejo de residuos sólidos municipales.\nConstitución: Tratamiento y disposición final de residuos.","SÍ",null,"X",null,"X","SÍ","Tratamiento de residuos sólidos"]
[null,null,"   4.C - Incineración e incineración abierta de desechos",null,"LGCC: Manejo de residuos sólidos municipales.\nConstitución: Tratamiento y disposición final de residuos.","SÍ",null,"X",null,"X","SÍ","Tratamiento de residuos sólidos"]
[null,null,"   4.D - Tratamiento y eliminación de aguas residuales","      4.D.1 - Tratamiento y eliminación de aguas residuales domésticas","Constitución: Tratamiento y disposición de sus aguas residuales.","SÍ",null,"X",null,"X","SÍ","Tratamiento aguas residuales"]
[null,null,null,"      4.D.2 - Tratamiento y eliminación de aguas residuales industriales",null,null,null,"X",null,null,"SÍ","Tratamiento aguas residuales"]
[null,null,"   4.E - Otros"]
[null,"5 - Otros"," 5.A - Emisiones indirectas de N₂O de la deposición atmosférica de nitrógeno en NOx y NH₃","  ","\n\n"]
[null,null,"  5.B - Otros"," "]

{"sheet":"Otros (energía), combustibles","index":2,"n_rows":219,"n_cols":18,"rows_kept":219,"cut":false,"hidden":false,"merged":[[213,2,213,9],[214,2,214,7],[39,2,39,7],[40,3,40,7],[2,2,2,17],[51,16,51,17],[45,14,45,15],[44,10,44,15],[45,10,45,11],[45,12,45,13],[44,2,45,9],[44,16,45,17],[41,3,41,7],[42,3,42,7],[5,1,5,18]]}
[]
[]
[null,null,"emisiones de CyGEI generados por el gobierno del municipio de [incluir el nombre del municipio] a partir del consumo de combustibles en el periodo comprendido del 01 de enero al 31 de diciembre de cada año"]
[null,"Explicación"]
[null,"Esta hoja de cálculo sigue la metodología del Registro Nacional de Emisiones, la cual, a su vez, se basa en las directrices del Grupo Intergubernamental de Expertos sobre el Cambio Climático (IPCC) de 2006 para los inventarios nacionales de Gases de Efecto Invernadero."]
[null,"La información necesaria y los resultados obtenidos sólo hacen referencia a las emisiones de los vehículos del municipio. Si se requiere expandirlo a un alcance mayor (por ejemplo, emisiones por carretera, ferroviario, navegación marítima, fluvial, lacustre, aviación, fuera de carretera), se debe especificar en el inventario."]
[null,"Esta hoja se utiliza cuando se conoce el parque vehicular del municipio. Es importante aclarar que, para evitar doble contabilidad, si utiliza esta hoja de cálculo tendrá que omitirse el llenado de la hoja de cálculo llamada “Transporte”."]
[null,"Los datos de actividad corresponden a un año (generalmente se utilizan los correspondientes de enero a diciembre)."]
[]
[null,"Datos de actividad"]
[null,"Los datos de actividad para la subcategoría Otros (energía), combustibles se obtienen de la siguiente fuente de información:"]
[null,"•","Flota vehicular del municipio."]
[null,"•","Datos sobre venta de combustibles en el municipio."]
[]
[null,"Los datos de la flota vehicular tendrán que solicitarse al gobierno municipal, al área encargada de los temas de calidad del aire o de movilidad; en su defecto, podrán apoyarse en el gobierno estatal (SEMADET, Dirección de Calidad del Aire). "]
[null,"Los datos sobre la venta de combustibles en el municipio deberán solicitarse a la Dirección Operativa de Procura y Abastecimiento de Petróleos Mexicanos (PEMEX)."]
[null,"Los datos necesarios de la flota vehicular son:"]
[null,"•","Tipo de unidad"]
[null,"•","Cantidad de unidades"]
[null,"•","Tipo de combustible"]
[null,"•","Volumen de combustible"]
[]
[null,"Los datos a solicitar son los volúmenes de venta de los siguientes combustibles en el municipio:"]
[null,"•","Gasolina"]
[null,"•","Diésel"]
[null,"•","Gas L.P. (para vehículos)"]
[null,"•","Gas natural (para vehículos)"]
[]
[null,"Instrucciones"]
[null,"•","Las celdas en color verde son las que se pueden modificar."]
[null,"•","La columna B (en color verde) se llena con el nombre de la dependencia de la cual se tiene la información; por ejemplo: \"Presidencia municipal\", \"Contraloría\", \"Servicios municipales\", etcétera. Si se cuenta con un único dato correspondiente al municipio, sólo se pone \"gobierno municipal\"."]
[null,"•","Con los datos obtenidos de la flota vehicular se llenarán las columnas C, D y E (color verde)."]
[null,"•","Con los datos de la venta de combustibles en el municipio (proporcionados por PEMEX) se llena la columna F (en color verde). Se deberá hacer un estimado por tipo de vehículo."]
[null,"•","Es importante verificar que el volumen ingresado en la columna F sea en litros."]
[null,"•","Las celdas en color azul se actualizan automáticamente (NO MODIFICAR)."]
[null,"•","Los datos en las celdas en color gris están homologados con los utilizados en el inventario estatal. Se recomienda NO MODIFICAR sin consultarlo con el gobierno estatal (SEMADET)."]
[null,"•","• La celda en color rojo es el resultado y se calcula automáticamente (NO MODIFICAR)."]
[]
[null,"La información en las  primeras tres filas se muestra como ejemplo. Los datos tendrán que actualizarse con información del municipio."]
[null,null,"El consumo de combustibles se obtiene de las facturas / recibos que se cuente."]
[null,null,null,"Las celdas en color verde son las que se pueden modificar."]
[null,null,null,"Las celdas en color azul se actualizan automáticamente (NO MODIFICAR)"]
[null,null,null,"La celda en color rojo es el resultado y se calcula automáticamente (NO MODIFICAR)"]
[]
[null,null,"INFORMACIÓN SOBRE EL CONSUMO DE COMBUSTIBLES EN FUENTES MÓVILES",{"$nulls":7},"ESTIMÁCION DE EMISIONES DE CO2, CH2, N2O",{"$nulls":5},"ESTIMACIONES TOTALES"]
[{"$nulls":10},"EMISIONES DE CO2",null,"EMISIONES DE CH4",null,"EMISIONES DE N2O"]
[null,null,"Número de Dependencia","Nombre de la Dependencia","Tipo de Unidad Vehicular","Cantidad de unidades","Tipo de Combustible","VC (Litros)","VC (m³)","*Poder Calorífico (Gasolina: 32.216 MJ/l, Diesel:35.537 MJ/l, Gas LP: 26.260 MJ/l, Gas Natural: 36.569 MJ/m3)","FE CO2 (t CO2/MJ)","ECO2 (t)","FE CH4 (Kg CH4/MJ)","ECH4 (Kg)","FE N8O (Kg N2O/MJ)","EN2O (Kg)","Tipo de emisión","Emisiones (Gg)"]
[null,null,1,{"$nulls":5},{"$f":"H48/1000","v":0},{"$f":"IF(G48=\"Gasolinas y naftas\",\"32.216\",IF(G48=\"Diésel\",\"35.537\",IF(G48=\"Gas Licuado\", \"26.260\", IF(G48=\"Gas Natural\",\"36.569\",\" \"))))","v":" "},{"$f":"IF(G48=\"Gasolinas y naftas\", \"0.0000693\", IF(G48=\"Diésel\", \"0.0000741\", IF(G48=\"Gas Licuado\", \"0.0000631\", IF(G48= \"Gas Natural\", \"0.0000561\", \" \"))))","v":" "},{"$f":"IFERROR(H48*J48*K48,0)","v":0},{"$f":"IF(J48=\"32.216\", \"0.000025\", IF(J48=\"35.537\", \"0.0000039\", IF(J48=\"26.260\", \"0.000062\", IF(J48= \"36.569\", \"0.000092\", \" \"))))","v":" "},{"$f":"IFERROR(H48*J48*M48,0)","v":0},{"$f":"IF(J48=\"32.216\", \"0.000008\", IF(J48=\"35.537\", \"0.0000039\", IF(J48=\"26.260\", \"0.0000002\", IF(J48= \"36.569\", \"0.000003\", \" \"))))","v":" "},{"$f":"IFERROR(H48*J48*O48,0)","v":0},"CO2",{"$f":"L213/1000","v":0}]
[null,null,2,{"$nulls":5},{"$f":"H49/1000","v":0},{"$f":"IF(G49=\"Gasolinas y naftas\",\"32.216\",IF(G49=\"Diésel\",\"35.537\",IF(G49=\"Gas Licuado\", \"26.260\", IF(G49=\"Gas Natural\",\"36.569\",\" \"))))","v":" "},{"$f":"IF(G49=\"Gasolinas y naftas\", \"0.0000693\", IF(G49=\"Diésel\", \"0.0000741\", IF(G49=\"Gas Licuado\", \"0.0000631\", IF(G49= \"Gas Natural\", \"0.0000561\", \" \"))))","v":" "},{"$f":"IFERROR(H49*J49*K49,0)","v":0},{"$f":"IF(J49=\"32.216\", \"0.000025\", IF(J49=\"35.537\", \"0.0000039\", IF(J49=\"26.260\", \"0.000062\", IF(J49= \"36.569\", \"0.000092\", \" \"))))","v":" "},{"$f":"IFERROR(H49*J49*M49,0)","v":0},{"$f":"IF(J49=\"32.216\", \"0.000008\", IF(J49=\"35.537\", \"0.0000039\", IF(J49=\"26.260\", \"0.0000002\", IF(J49= \"36.569\", \"0.000003\", \" \"))))","v":" "},{"$f":"IFERROR(H49*J49*O49,0)","v":0},"CH4",{"$f":"N214/1000","v":0}]
[null,null,3,{"$nulls":5},0," "," ",{"$f":"IFERROR(H50*J50*K50,0)","v":0}," ",0," ",{"$f":"IFERROR(H50*J50*O50,0)","v":0},"N2O",{"$f":"P214/1000","v":0}]
[null,null,4,{"$nulls":5},0," "," ",{"$f":"IFERROR(H51*J51*K51,0)","v":0}," ",0," ",0,"CN",{"$f":"Transporte!S36","v":0}]
[null,null,5,{"$nulls":5},0," "," ",{"$f":"IFERROR(H52*J52*K52,0)","v":0}," ",0," ",0]
[null,null,6,{"$nulls":5},0," "," ",0," ",0," ",0]
[null,null,7,{"$nulls":5},0," "," ",0," ",0," ",0]
[null,null,8,{"$nulls":5},0," "," ",0," ",0," ",0]
[null,null,9,{"$nulls":5},0," "," ",0," ",0," ",0]
[null,null,10,{"$nulls":5},0," "," ",0," ",0," ",0]
[null,null,11,{"$nulls":5},0," "," ",0," ",0," ",0]
[null,null,12,{"$nulls":5},0," "," ",0," ",0," ",0]
[null,null,13,{"$nulls":5},0," "," ",0," ",0," ",0]
[null,null,14,{"$nulls":5},0," "," ",0," ",0," ",0]
[null,null,15,{"$nulls":5},0," "," ",0," ",0," ",0]
[null,null,16,{"$nulls":5},0," "," ",0," ",0," ",0]
[null,null,17,{"$nulls":5},0," "," ",0," ",0," ",0]
[null,null,18,{"$nulls":5},0," "," ",0," ",0," ",0]
[null,null,19,{"$nulls":5},0," "," ",0," ",0," ",0]
[null,null,20,{"$nulls":5},0," "," ",0," ",0," ",0]
[null,null,21,{"$nulls":5},0," "," ",0," ",0," ",0]
[null,null,22,{"$nulls":5},0," "," ",0," ",0," ",0]
[null,null,23,{"$nulls":5},0," "," ",0," ",0," ",0]
[null,null,24,{"$nulls":5},0," "," ",0," ",0," ",0]
[null,null,25,{"$nulls":5},0," "," ",0," ",0," ",0]
[null,null,26,{"$nulls":5},0," "," ",0," ",0," ",0]
[null,null,27,{"$nulls":5},0," "," ",0," ",0," ",0]
[null,null,28,{"$nulls":5},0," "," ",0," ",0," ",0]
[null,null,29,{"$nulls":5},0," "," ",0," ",0," ",0]
[null,null,30,{"$nulls":5},0," "," ",0," ",0," ",0]
[null,null,31,{"$nulls":5},0," "," ",0," ",0," ",0]
[null,null,32,{"$nulls":5},0," "," ",0," ",0," ",0]
[null,null,33,{"$nulls":5},0," "," ",0," ",0," ",0]
[null,null,34,{"$nulls":5},0," "," ",0," ",0," ",0]
[null,null,35,{"$nulls":5},0," "," ",0," ",0," ",0]
[null,null,36,{"$nulls":5},0," "," ",0," ",0," ",0]
[null,null,37,{"$nulls":5},0," "," ",0," ",0," ",0]
[null,null,38,{"$nulls":5},0," "," ",0," ",0," ",0]
[null,null,39,{"$nulls":5},0," "," ",0," ",0," ",0]
[null,null,40,{"$nulls":5},0," "," ",0," ",0," ",0]
[null,null,41,{"$nulls":5},0," "," ",0," ",0," ",0]
[null,null,42,{"$nulls":5},0," "," ",0," ",0," ",0]
[null,null,43,{"$nulls":5},0," "," ",0," ",0," ",0]
[null,null,44,{"$nulls":5},0," "," ",0," ",0," ",0]
[null,null,45,{"$nulls":5},0," "," ",0," ",0," ",0]
[null,null,46,{"$nulls":5},0," "," ",0," ",0," ",0]
[null,null,47,{"$nulls":5},0," "," ",0," ",0," ",0]
[null,null,48,{"$nulls":5},0," "," ",0," ",0," ",0]
[null,null,49,{"$nulls":5},0," "," ",0," ",0," ",0]
[null,null,50,{"$nulls":5},0," "," ",0," ",0," ",0]
[null,null,51,{"$nulls":5},0," "," ",0," ",0," ",0]
[null,null,52,{"$nulls":5},0," "," ",0," ",0," ",0]
[null,null,53,{"$nulls":5},0," "," ",0," ",0," ",0]
[null,null,54,{"$nulls":5},0," "," ",0," ",0," ",0]
[null,null,55,{"$nulls":5},0," "," ",0," ",0," ",0]
[null,null,56,{"$nulls":5},0," "," ",0," ",0," ",0]
[null,null,57,{"$nulls":5},0," "," ",0," ",0," ",0]
[null,null,58,{"$nulls":5},0," "," ",0," ",0," ",0]
[null,null,59,{"$nulls":5},0," "," ",0," ",0," ",0]
[null,null,60,{"$nulls":5},0," "," ",0," ",0," ",0]
[null,null,61,{"$nulls":5},0," "," ",0," ",0," ",0]
[null,null,62,{"$nulls":5},0," "," ",0," ",0," ",0]
[null,null,63,{"$nulls":5},0," "," ",0," ",0," ",0]
[null,null,64,{"$nulls":5},0," "," ",0," ",0," ",0]
[null,null,65,{"$nulls":5},0," "," ",0," ",0," ",0]
[null,null,66,{"$nulls":5},{"$f":"H113/1000","v":0},{"$f":"IF(G113=\"Gasolinas y naftas\",\"32.216\",IF(G113=\"Diésel\",\"35.537\",IF(G113=\"Gas Licuado\", \"26.260\", IF(G113=\"Gas Natural\",\"36.569\",\" \"))))","v":" "},{"$f":"IF(G113=\"Gasolinas y naftas\", \"0.0000693\", IF(G113=\"Diésel\", \"0.0000741\", IF(G113=\"Gas Licuado\", \"0.0000631\", IF(G113= \"Gas Natural\", \"0.0000561\", \" \"))))","v":" "},0,{"$f":"IF(J113=\"32.216\", \"0.000025\", IF(J113=\"35.537\", \"0.0000039\", IF(J113=\"26.260\", \"0.000062\", IF(J113= \"36.569\", \"0.000092\", \" \"))))","v":" "},{"$f":"IFERROR(H113*J113*M113,0)","v":0},{"$f":"IF(J113=\"32.216\", \"0.000008\", IF(J113=\"35.537\", \"0.0000039\", IF(J113=\"26.260\", \"0.0000002\", IF(J113= \"36.569\", \"0.000003\", \" \"))))","v":" "},0]
[null,null,67,{"$nulls":5},0," "," ",0," ",0," ",{"$f":"IFERROR(H114*J114*O114,0)","v":0}]
[null,null,68,{"$nulls":5},0," "," ",0," ",0," ",0]
[null,null,69,{"$nulls":5},0," "," ",{"$f":"IFERROR(H116*J116*K116,0)","v":0}," ",0," ",0]
[null,null,70,{"$nulls":5},0," "," ",0," ",0," ",0]
[null,null,71,{"$nulls":5},0," "," ",0," ",0," ",0]
[null,null,72,{"$nulls":5},0," "," ",0," ",0," ",0]
[null,null,73,{"$nulls":5},0," "," ",0," ",0," ",0]
[null,null,74,{"$nulls":5},0," "," ",0," ",0," ",0]
[null,null,75,{"$nulls":5},0," "," ",0," ",0," ",0]
[null,null,76,{"$nulls":5},0," "," ",0," ",0," ",0]
[null,null,77,{"$nulls":5},0," "," ",0," ",0," ",0]
[null,null,78,{"$nulls":5},0," "," ",0," ",0," ",0]
[null,null,79,{"$nulls":5},0," "," ",0," ",0," ",0]
[null,null,80,{"$nulls":5},0," "," ",0," ",0," ",0]
[null,null,81,{"$nulls":5},0," "," ",0," ",0," ",0]
[null,null,82,{"$nulls":5},0," "," ",0," ",0," ",0]
[null,null,83,{"$nulls":5},0," "," ",0," ",0," ",0]
[null,null,84,{"$nulls":5},0," "," ",0," ",0," ",0]
[null,null,85,{"$nulls":5},0," "," ",0," ",0," ",0]
[null,null,86,{"$nulls":5},0," "," ",0," ",0," ",0]
[null,null,87,{"$nulls":5},0," "," ",0," ",0," ",0]
[null,null,88,{"$nulls":5},0," "," ",0," ",0," ",0]
[null,null,89,{"$nulls":5},0," "," ",0," ",0," ",0]
[null,null,90,{"$nulls":5},0," "," ",0," ",0," ",0]
[null,null,91,{"$nulls":5},0," "," ",0," ",0," ",0]
[null,null,92,{"$nulls":5},0," "," ",0," ",0," ",0]
[null,null,93,{"$nulls":5},0," "," ",0," ",0," ",0]
[null,null,94,{"$nulls":5},0," "," ",0," ",0," ",0]
[null,null,95,{"$nulls":5},0," "," ",0," ",0," ",0]
[null,null,96,{"$nulls":5},0," "," ",0," ",0," ",0]
[null,null,97,{"$nulls":5},0," "," ",0," ",0," ",0]
[null,null,98,{"$nulls":5},0," "," ",0," ",0," ",0]
[null,null,99,{"$nulls":5},0," "," ",0," ",0," ",0]
[null,null,100,{"$nulls":5},0," "," ",0," ",0," ",0]
[null,null,101,{"$nulls":5},0," "," ",0," ",0," ",0]
[null,null,102,{"$nulls":5},0," "," ",0," ",0," ",0]
[null,null,103,{"$nulls":5},0," "," ",0," ",0," ",0]
[null,null,104,{"$nulls":5},0," "," ",0," ",0," ",0]
[null,null,105,{"$nulls":5},0," "," ",0," ",0," ",0]
[null,null,106,{"$nulls":5},0," "," ",0," ",0," ",0]
[null,null,107,{"$nulls":5},0," "," ",0," ",0," ",0]
[null,null,108,{"$nulls":5},0," "," ",0," ",0," ",0]
[null,null,109,{"$nulls":5},0," "," ",0," ",0," ",0]
[null,null,110,{"$nulls":5},0," "," ",0," ",0," ",0]
[null,null,111,{"$nulls":5},0," "," ",0," ",0," ",0]
[null,null,112,{"$nulls":5},0," "," ",0," ",0," ",0]
[null,null,113,{"$nulls":5},0," "," ",0," ",0," ",0]
[null,null,114,{"$nulls":5},0," "," ",0," ",0," ",0]
[null,null,115,{"$nulls":5},0," "," ",0," ",0," ",0]
[null,null,116,{"$nulls":5},0," "," ",0," ",0," ",0]
[null,null,117,{"$nulls":5},0," "," ",0," ",0," ",0]
[null,null,118,{"$nulls":5},0," "," ",0," ",0," ",0]
[null,null,119,{"$nulls":5},0," "," ",0," ",0," ",0]
[null,null,120,{"$nulls":5},0," "," ",0," ",0," ",0]
[null,null,121,{"$nulls":5},0," "," ",0," ",0," ",0]
[null,null,122,{"$nulls":5},0," "," ",0," ",0," ",0]
[null,null,123,{"$nulls":5},0," "," ",0," ",0," ",0]
[null,null,124,{"$nulls":5},0," "," ",0," ",0," ",0]
[null,null,125,{"$nulls":5},0," "," ",0," ",0," ",0]
[null,null,126,{"$nulls":5},0," "," ",0," ",0," ",0]
[null,null,127,{"$nulls":5},0," "," ",0," ",0," ",0]
[null,null,128,{"$nulls":5},0," "," ",0," ",0," ",0]
[null,null,129,{"$nulls":5},0," "," ",0," ",0," ",0]
[null,null,130,{"$nulls":5},{"$f":"H177/1000","v":0},{"$f":"IF(G177=\"Gasolinas y naftas\",\"32.216\",IF(G177=\"Diésel\",\"35.537\",IF(G177=\"Gas Licuado\", \"26.260\", IF(G177=\"Gas Natural\",\"36.569\",\" \"))))","v":" "},{"$f":"IF(G177=\"Gasolinas y naftas\", \"0.0000693\", IF(G177=\"Diésel\", \"0.0000741\", IF(G177=\"Gas Licuado\", \"0.0000631\", IF(G177= \"Gas Natural\", \"0.0000561\", \" \"))))","v":" "},0,{"$f":"IF(J177=\"32.216\", \"0.000025\", IF(J177=\"35.537\", \"0.0000039\", IF(J177=\"26.260\", \"0.000062\", IF(J177= \"36.569\", \"0.000092\", \" \"))))","v":" "},{"$f":"IFERROR(H177*J177*M177,0)","v":0},{"$f":"IF(J177=\"32.216\", \"0.000008\", IF(J177=\"35.537\", \"0.0000039\", IF(J177=\"26.260\", \"0.0000002\", IF(J177= \"36.569\", \"0.000003\", \" \"))))","v":" "},0]
[null,null,131,{"$nulls":5},0," "," ",0," ",0," ",{"$f":"IFERROR(H178*J178*O178,0)","v":0}]
[null,null,132,{"$nulls":5},0," "," ",0," ",0," ",0]
[null,null,133,{"$nulls":5},0," "," ",{"$f":"IFERROR(H180*J180*K180,0)","v":0}," ",0," ",0]
[null,null,134,{"$nulls":5},0," "," ",0," ",0," ",0]
[null,null,135,{"$nulls":5},0," "," ",0," ",0," ",0]
[null,null,136,{"$nulls":5},0," "," ",0," ",0," ",0]
[null,null,137,{"$nulls":5},0," "," ",0," ",0," ",0]
[null,null,138,{"$nulls":5},0," "," ",0," ",0," ",0]
[null,null,139,{"$nulls":5},0," "," ",0," ",0," ",0]
[null,null,140,{"$nulls":5},0," "," ",0," ",0," ",0]
[null,null,141,{"$nulls":5},0," "," ",0," ",0," ",0]
[null,null,142,{"$nulls":5},0," "," ",0," ",0," ",0]
[null,null,143,{"$nulls":5},0," "," ",0," ",0," ",0]
[null,null,144,{"$nulls":5},0," "," ",0," ",0," ",0]
[null,null,145,{"$nulls":5},0," "," ",0," ",0," ",0]
[null,null,146,{"$nulls":5},0," "," ",0," ",0," ",0]
[null,null,147,{"$nulls":5},0," "," ",0," ",0," ",0]
[null,null,148,{"$nulls":5},0," "," ",0," ",0," ",0]
[null,null,149,{"$nulls":5},0," "," ",0," ",0," ",0]
[null,null,150,{"$nulls":5},0," "," ",0," ",0," ",0]
[null,null,151,{"$nulls":5},0," "," ",0," ",0," ",0]
[null,null,152,{"$nulls":5},0," "," ",0," ",0," ",0]
[null,null,153,{"$nulls":5},0," "," ",0," ",0," ",0]
[null,null,154,{"$nulls":5},0," "," ",0," ",0," ",0]
[null,null,155,{"$nulls":5},0," "," ",0," ",0," ",0]
[null,null,156,{"$nulls":5},0," "," ",0," ",0," ",0]
[null,null,157,{"$nulls":5},0," "," ",0," ",0," ",0]
[null,null,158,{"$nulls":5},0," "," ",0," ",0," ",0]
[null,null,159,{"$nulls":5},0," "," ",0," ",0," ",0]
[null,null,160,{"$nulls":5},0," "," ",0," ",0," ",0]
[null,null,161,{"$nulls":5},0," "," ",0," ",0," ",0]
[null,null,162,{"$nulls":5},0," "," ",0," ",0," ",0]
[null,null,163,{"$nulls":5},0," "," ",0," ",0," ",0]
[null,null,164,{"$nulls":5},0," "," ",0," ",0," ",0]
[null,null,165,{"$nulls":5},0," "," ",0," ",0," ",0]
[null,null,"         ",{"$nulls":7},"TOTAL (t)",{"$f":"SUM(L48:L212)","v":0},"TOTAL (kg)",{"$f":"SUM(N48:N212)","v":0},"TOTAL (kg)",{"$f":"SUM(P48:P212)","v":0}]
[null,null,"                            ",{"$nulls":9},"TOTAL (t)",{"$f":"N213/1000","v":0},"TOTAL (t)",{"$f":"P213/1000","v":0}]
[]
[{"$nulls":5},{"$f":"SUBTOTAL(9,F63:F212)","v":0},null,{"$f":"SUBTOTAL(9,H67:H212)","v":0}]
[]
[{"$nulls":11},"Tabla 3. Gas Natural "]
[{"$nulls":11},"Gas Natural (promedio de asociado y no asociado)"]

{"sheet":"Transporte","index":3,"n_rows":36,"n_cols":19,"rows_kept":36,"cut":false,"hidden":false,"merged":[[28,2,29,2],[28,3,28,4],[4,1,4,18],[5,1,5,18],[1,2,1,18]]}
[]
[null,null,"Emisiones de GEI por transporte (venta de petrolíferos para transporte) \ndel municipio de [incluir el nombre del municipio]"]
[null,"Explicación"]
[null,"Esta hoja de cálculo sigue la metodología de las directrices del Grupo Intergubernamental de Expertos sobre el Cambio Climático (IPCC) de 2006 para los inventarios nacionales de Gases de Efecto Invernadero."]
[null,"La información necesaria y los resultados obtenidos sólo se refieren a las emisiones de los vehículos del municipio. Si se requiere ampliarlo a un alcance mayor (por ejemplo, emisiones por carretera, ferroviario, navegación marítima, fluvial, lacustre, aviación, fuera de carretera), se debe especificar en el inventario."]
[null,"Esta hoja se utiliza cuando se desconoce el parque vehicular del municipio y sólo se tiene el volumen de combustible vendido/utilizado en el municipio. Es importante aclarar que, para evitar doble contabilidad, si utiliza esta hoja de cálculo tendrá que omitirse el llenado de la hoja de cálculo llamada “Otros (energía), combustibles”."]
[null,"Los datos utilizados en las columnas D, E, F, G, H e I se retoman de los manejados en el Inventario Estatal de Gases y Compuestos de Efecto Invernadero de Jalisco, realizado en 2017 con información de 2014."]
[]
[null,"Datos de actividad"]
[null,"Los datos de actividad corresponden a un año (generalmente se utilizan los correspondientes de enero a diciembre)."]
[]
[null,"Los datos de actividad para la subcategoría \"Transporte\" se obtienen de la siguiente fuente de información:"]
[null,"•","Datos sobre venta de combustibles en el estado de Jalisco de PEMEX (por municipio)."]
[]
[null,"Los datos tendrán que ser solicitados a la Dirección Operativa de Procura y Abastecimiento de Petróleos Mexicanos (PEMEX).  Los datos a solicitar son los volúmenes de venta en el municipio de los siguientes combustibles:"]
[null,"•","Gasolina"]
[null,"•","Diésel"]
[null,"•","Gas L.P. (para vehículos)"]
[null,"•","Gas natural (para vehículos)"]
[]
[null,"Instrucciones"]
[null,"•","Las celdas en color verde son las que se pueden modificar."]
[null,"•","Con los datos obtenidos de la venta de combustibles en el municipio (proporcionados por PEMEX) se llena la columna B (en color verde)."]
[null,"•","Es importante verificar que el volumen ingresado en la columna B sea en litros."]
[null,"•","Las celdas en color azul se actualizan automáticamente (NO MODIFICAR)."]
[null,"•","Los datos en las celdas en color gris están homologados con los utilizados en el inventario estatal. Se recomienda NO MODIFICAR sin consultarlo con el gobierno estatal (SEMADET)."]
[null,"•","La celda en color rojo es el resultado y se calcula automáticamente (NO MODIFICAR)."]
[]
[null,null,"Combustible","Volumen",null,"Poder calorífico","Factor de emisión CO₂","Factor de emisión CH₄","Factor de emisión N₂O","Factor de emisión CN","Factor de conversión CN","EMISIONES CO₂","EMISIONES CH₄","EMISIONES N₂O","EMISIONES CN","EMISIONES CO₂","EMISIONES CH₄","EMISIONES N₂O","EMISIONES CN"]
[null,null,null,"(l)","(mᶟ)","MJ/l","t CO₂/MJ","Kg CH4/MJ","Kg N2O/MJ","g/galón",null,"toneladas","toneladas","toneladas","Kg","Gigagramos","Gigagramos","Gigagramos","toneladas"]
[null,null,"Gasolina",null,{"$f":"D31/1000","v":0},32.216000000000001,6.9300000000000004E-5,2.5000000000000001E-5,7.9999999999999996E-6,7.2999999999999995E-2,{"$f":"0.264172/1000","v":2.6417200000000002E-4},{"$f":"E31*F31*G31","v":0},{"$f":"E31*F31*H31","v":0},{"$f":"E31*F31*I31","v":0},{"$f":"D31*J31*K31","v":0},{"$f":"L31/1000","v":0},{"$f":"M31/1000","v":0},{"$f":"N31/1000","v":0},{"$f":"O31/1000","v":0}]
[null,null,"Diésel",null,{"$f":"D32/1000","v":0},35.536999999999999,7.4099999999999999E-5,3.8999999999999999E-6,3.8999999999999999E-6,3.1850000000000001,{"$f":"0.264172/1000","v":2.6417200000000002E-4},{"$f":"E32*F32*G32","v":0},{"$f":"E32*F32*H32","v":0},{"$f":"E32*F32*I32","v":0},{"$f":"D32*J32*K32","v":0},{"$f":"L32/1000","v":0},{"$f":"M32/1000","v":0},{"$f":"N32/1000","v":0},{"$f":"O32/1000","v":0}]
[null,null,"Gas L.P.",null,0,26.26,6.3100000000000002E-5,6.2000000000000003E-5,1.9999999999999999E-7,null,null,0,0,0,null,0,0,{"$f":"N33/1000","v":0}]
[{"$nulls":5},"MJ/m3"]
[null,null,"Gas natural",null,0,36.569000000000003,5.6100000000000002E-5,9.2E-5,3.0000000000000001E-6,null,null,0,0,0,null,0,0,{"$f":"N35/1000","v":0}]
[null,null,"TOTAL",{"$nulls":12},{"$f":"SUM(P31:P35)","v":0},{"$f":"SUM(Q31:Q35)","v":0},0,{"$f":"SUM(S31:S32)","v":0}]

{"sheet":"Otros (energía), E. eléctrica","index":4,"n_rows":121,"n_cols":9,"rows_kept":121,"cut":false,"hidden":false,"merged":[[24,2,24,8],[2,2,2,8],[17,2,17,8],[20,2,20,8],[23,2,23,8],[4,1,4,8],[21,2,21,8]]}
[]
[]
[null,null,"Emisiones de CyGEI generados por el gobierno del municipio de [incluir el nombre del municipio]\na partir del consumo anual de energía eléctrica "]
[null,"Explicación"]
[null,"Esta hoja de cálculo sigue la metodología del Registro Nacional de Emisiones, la cual se basa en las Directrices del Grupo Intergubernamental de Expertos sobre el Cambio Climático (IPCC) de 2006 para los inventarios nacionales de Gases de Efecto Invernadero. "]
[null,"La información necesaria y los resultados obtenidos hacen referencia a las emisiones por el alumbrado público y por las operaciones de los edificios e instalaciones del gobierno municipal. "]
[null,"Los datos de actividad corresponden a un año (generalmente se utilizan los correspondientes de enero a diciembre)."]
[]
[null,"Datos de actividad"]
[null,"Los datos de actividad para la subcategoría \"Otros (energía), E. eléctrica\" se obtienen de la siguiente fuente de información:"]
[null,"•","Facturas de consumo eléctrico (recibos de luz)"]
[null,"Estos datos tendrán que ser solicitados al área de cada municipio responsable de guardar y archivar los recibos de luz. "]
[null,"Los datos necesarios son:"]
[null,"•","Consumo eléctrico de todo el año (en KW/h)"]
[]
[null,"Instrucciones"]
[null,"•","Las celdas en color verde son las que se pueden modificar."]
[null,"•","Las columnas B y C (en color verde) se llenan con el nombre de la dependencia de la cual se tiene la información; por ejemplo: \"Presidencia municipal\", \"Contraloría\", \"Servicios municipales\", etcétera; o, si se tiene un solo dato correspondiente al municipio, sólo se pone \"Gobierno municipal\", con el nombre del responsable de la información enviada."]
[null,"•","Con los datos obtenidos del consumo anual de electricidad anual se llenará la columna D (color verde)."]
[null,"•","Es importante verificar que el consumo de electricidad  se ingrese en  Kilo Watt/hora."]
[null,"•","Factor de Emisión Eléctrico (columna F, color gris). Este valor se actualizará anualmente. Consultar el valor de dicho factor que será publicado por la SENER y/o por la SEMARNAT en la siguiente liga:"]
[null,null,"https://www.gob.mx/semarnat/acciones-y-programas/registro-nacional-de-emisiones-rene"]
[null,"En la sección  \"Información para estimar emisiones\"."]
[null,"•","Para la presente herramienta se toma el dato más actualizado, publicado en marzo de 2018, correspondiente al periodo 2017, disponible en: "]
[null,null,"http://www.semarnat.gob.mx/sites/default/files/documentos/cicc/aviso_factor_de_emision_electrico_2017.pdf"]
[null,"•","Las celdas en color azul se actualizan automáticamente (NO MODIFICAR)."]
[null,"•","Los datos en las celdas en color gris están homologados con los utilizados en el inventario estatal; se recomienda NO MODIFICAR sin consultarlo con el gobierno estatal (SEMADET). "]
[null,"•","La celda en color rojo es el resultado y se calcula automáticamente (NO MODIFICAR)."]
[]
[null,null,"Número de dependencia","Nombre(s) de la(s) dependencia(s)","Nombre del o los responsables de la información enviada por dependencia","Consumo eléctrico de todo el año [KW/h]","Welect [MW/h]","FE elect  (t CO₂/MWh)*","ECO₂ e (t)"]
[null,null,1,null,null,null,{"$f":"F31/1000","v":0},0.58199999999999996,{"$f":"G31*H31","v":0}]
[null,null,2,null,null,null,{"$f":"F32/1000","v":0},0.58199999999999996,{"$f":"G32*H32","v":0}]
[null,null,3,null,null,null,0,0.58199999999999996,0]
[null,null,4,null,null,null,0,0.58199999999999996,0]
[null,null,5,null,null,null,0,0.58199999999999996,0]
[null,null,6,null,null,null,0,0.58199999999999996,0]
[null,null,7,null,null,null,0,0.58199999999999996,0]
[null,null,8,null,null,null,0,0.58199999999999996,0]
[null,null,9,null,null,null,0,0.58199999999999996,0]
[null,null,10,null,null,null,0,0.58199999999999996,0]
[null,null,11,null,null,null,0,0.58199999999999996,0]
[null,null,12,null,null,null,0,0.58199999999999996,0]
[null,null,13,null,null,null,0,0.58199999999999996,0]
[null,null,14,null,null,null,0,0.58199999999999996,0]
[null,null,15,null,null,null,0,0.58199999999999996,0]
[null,null,16,null,null,null,0,0.58199999999999996,0]
[null,null,17,null,null,null,0,0.58199999999999996,0]
[null,null,18,null,null,null,0,0.58199999999999996,0]
[null,null,19,null,null,null,0,0.58199999999999996,0]
[null,null,20,null,null,null,0,0.58199999999999996,0]
[null,null,21,null,null,null,0,0.58199999999999996,0]
[null,null,22,null,null,null,0,0.58199999999999996,0]
[null,null,23,null,null,null,0,0.58199999999999996,0]
[null,null,24,null,null,null,0,0.58199999999999996,0]
[null,null,25,null,null,null,0,0.58199999999999996,0]
[null,null,26,null,null,null,0,0.58199999999999996,0]
[null,null,27,null,null,null,0,0.58199999999999996,0]
[null,null,28,null,null,null,0,0.58199999999999996,0]
[null,null,29,null,null,null,0,0.58199999999999996,0]
[null,null,30,null,null,null,0,0.58199999999999996,0]
[null,null,31,null,null,null,0,0.58199999999999996,0]
[null,null,32,null,null,null,0,0.58199999999999996,0]
[null,null,33,null,null,null,0,0.58199999999999996,0]
[null,null,34,null,null,null,0,0.58199999999999996,0]
[null,null,35,null,null,null,0,0.58199999999999996,0]
[null,null,36,null,null,null,0,0.58199999999999996,0]
[null,null,37,null,null,null,0,0.58199999999999996,0]
[null,null,38,null,null,null,0,0.58199999999999996,0]
[null,null,39,null,null,null,0,0.58199999999999996,0]
[null,null,40,null,null,null,0,0.58199999999999996,0]
[null,null,41,null,null,null,0,0.58199999999999996,0]
[null,null,42,null,null,null,0,0.58199999999999996,0]
[null,null,43,null,null,null,0,0.58199999999999996,0]
[null,null,44,null,null,null,0,0.58199999999999996,0]
[null,null,45,null,null,null,0,0.58199999999999996,0]
[null,null,46,null,null,null,0,0.58199999999999996,0]
[null,null,47,null,null,null,0,0.58199999999999996,0]
[null,null,48,null,null,null,0,0.58199999999999996,0]
[null,null,49,null,null,null,0,0.58199999999999996,0]
[null,null,50,null,null,null,0,0.58199999999999996,0]
[null,null,51,null,null,null,0,0.58199999999999996,0]
[null,null,52,null,null,null,0,0.58199999999999996,0]
[null,null,53,null,null,null,0,0.58199999999999996,0]
[null,null,54,null,null,null,0,0.58199999999999996,0]
[null,null,55,null,null,null,0,0.58199999999999996,0]
[null,null,56,null,null,null,0,0.58199999999999996,0]
[null,null,57,null,null,null,0,0.58199999999999996,0]
[null,null,58,null,null,null,0,0.58199999999999996,0]
[null,null,59,null,null,null,0,0.58199999999999996,0]
[null,null,60,null,null,null,0,0.58199999999999996,0]
[null,null,61,null,null,null,0,0.58199999999999996,0]
[null,null,62,null,null,null,0,0.58199999999999996,0]
[null,null,63,null,null,null,0,0.58199999999999996,0]
[null,null,64,null,null,null,0,0.58199999999999996,0]
[null,null,65,null,null,null,0,0.58199999999999996,0]
[null,null,66,null,null,null,{"$f":"F96/1000","v":0},0.58199999999999996,{"$f":"G96*H96","v":0}]
[null,null,67,null,null,null,0,0.58199999999999996,0]
[null,null,68,null,null,null,0,0.58199999999999996,0]
[null,null,69,null,null,null,0,0.58199999999999996,0]
[null,null,70,null,null,null,0,0.58199999999999996,0]
[null,null,71,null,null,null,0,0.58199999999999996,0]
[null,null,72,null,null,null,0,0.58199999999999996,0]
[null,null,73,null,null,null,0,0.58199999999999996,0]
[null,null,74,null,null,null,0,0.58199999999999996,0]
[null,null,75,null,null,null,0,0.58199999999999996,0]
[null,null,76,null,null,null,0,0.58199999999999996,0]
[null,null,77,null,null,null,0,0.58199999999999996,0]
[null,null,78,null,null,null,0,0.58199999999999996,0]
[null,null,79,null,null,null,0,0.58199999999999996,0]
[null,null,80,null,null,null,0,0.58199999999999996,0]
[null,null,81,null,null,null,0,0.58199999999999996,0]
[null,null,82,null,null,null,0,0.58199999999999996,0]
[null,null,83,null,null,null,0,0.58199999999999996,0]
[null,null,84,null,null,null,0,0.58199999999999996,0]
[null,null,85,null,null,null,0,0.58199999999999996,0]
[null,null,86,null,null,null,0,0.58199999999999996,0]
[null,null,87,null,null,null,0,0.58199999999999996,0]
[null,null,88,null,null,null,0,0.58199999999999996,0]
[null,null,89,null,null,null,0,0.58199999999999996,0]
[null,null,90,null,null,null,0,0.58199999999999996,0]
[{"$nulls":4},"CANTIDAD TOTAL DE ENERGÍA ELÉCTRICA CONSUMIDA",{"$f":"SUM(F31:F120)","v":0},{"$f":"SUM(G31:G120)","v":0},"CO₂ total (Gg)",{"$f":"(SUM(I31:I120))/1000","v":0}]

{"sheet":"Ferm. entérica, G. de estiércol","index":5,"n_rows":40,"n_cols":12,"rows_kept":40,"cut":false,"hidden":false,"merged":[[29,2,30,2],[28,4,28,7],[28,8,28,11],[1,2,1,11],[25,2,25,11],[3,1,3,11],[14,1,14,11]]}
[]
[null,null,"Emisiones de GEI por ganadería \n(fermentación entérica y gestión de estiércol) \ndel municipio de  [incluir el nombre del municipio]"]
[null,"Explicación"]
[null,"Esta hoja de cálculo se basa en el uso de la Guía metodológica para Agricultura, Bosques y Otros Usos de Suelo (Agriculture, Forestry and Other Land Use, AFOLU, por sus siglas en inglés) publicada por IPCC (2006) para la parte agropecuaria, y la Guía de buenas prácticas IPCC (2003)."]
[null,"En esta hoja se juntan las subcategorías \"Fermentación entérica\" y \"Gestión de estiércol\", porque ambas parten de la misma fuente de información."]
[null,"Se tendrán que seleccionar las poblaciones ganaderas  presentes con una producción importante en el municipio, dejando en blanco aquéllas que no."]
[]
[null,"Los datos de actividad corresponden a un año (generalmente se utilizan los correspondientes de enero a diciembre)."]
[]
[null,"Datos de actividad"]
[null,"Los datos de actividad para las subcategorías \"Fermentación entérica\" y \"Gestión de estiércol\" se obtienen de la siguiente fuente de información:"]
[null,"•","Inventario Ganadero de la Oficina Estatal de Información para el Desarrollo Rural Sustentable de Jalisco (OEIDRUS) de la SAGARPA."]
[null,"•","Este inventario está disponible en el Servicio de Información Agroalimentaria y Pesquera (SIAP) disponible en https://www.gob.mx/siap"]
[]
[null,"De no estar disponible la información desagregada por municipio en la página del SIAP, se puede solicitar directamente al correo electrónico contacto.siap@siap.gob.mx"]
[]
[null,"Los datos necesarios son:"]
[null,"•","Número de animales por tipo de ganado"]
[]
[null,"Instrucciones"]
[null,"•","Las celdas en color verde son las que se pueden modificar."]
[null,"•","La columna B (en color verde) se llena con el número de animales por tipo de ganado obtenido en el SIAP."]
[null,"•","Es importante verificar que el dato se ingrese en número de animales."]
[null,"•","Se podrán dejar sin llenar las celdas correspondientes al tipo de ganado que no sea representativo en el municipio."]
[null,"•","Las celdas en color azul se actualizan automáticamente (NO MODIFICAR)."]
[null,"•","Los datos en las celdas en color gris (columnas C y G correspondientes a los factores de emisión) están homologados con los utilizados en el inventario estatal; se recomienda NO MODIFICAR sin consultarlo con el gobierno estatal (SEMADET); a su vez, dichos datos están homologados con los nacionales."]
[null,"•","La celda en color rojo es el resultado y se calcula automáticamente (NO MODIFICAR)."]
[]
[{"$nulls":4},"FFERMENTACIÓN ENTÉRICA",null,null,null,"GESTIÓN DE ESTIÉRCOL"]
[null,null,"Tipo de ganado","Número de animales","Factor de emisión por fermentación entérica","Emisiones  de metano por fermentación entérica","Emisiones por fermentación entérica para ganado doméstico","Emisiones por fermentación entérica para ganado doméstico","Factor de emisión por gestión de estiércol","Emisiones  de metano por gestión de estiércol","Emisiones por gestión de estiércol  para ganado doméstico","Emisiones por gestión de estiércol para ganado doméstico"]
[null,null,null,"# animales","(kg/cabeza/año)","(Kg CH₄/año)","(ton CH₄/año)","(Gg CH₄)","(kg/cabeza/año)","(Kg CH₄/año)","(ton CH₄/año)","(Gg CH₄)"]
[null,null,"Ganado bovino (carne)",null,53,{"$f":"D32*E32","v":0},{"$f":"F32/1000","v":0},{"$f":"F32/1000000","v":0},60,{"$f":"D32*I32","v":0},{"$f":"J32/1000","v":0},{"$f":"J32/1000000","v":0}]
[null,null,"Ganado bovino (leche)",null,121,{"$f":"D33*E33","v":0},{"$f":"F33/1000","v":0},{"$f":"F33/1000000","v":0},60,{"$f":"D33*I33","v":0},{"$f":"J33/1000","v":0},{"$f":"J33/1000000","v":0}]
[null,null,"Ovino -ovejas -borregos",null,5,0,0,0,7.8,0,0,0]
[null,null,"Cabras",null,5,0,0,0,5.6,0,0,0]
[null,null,"Caballos",null,18,0,0,0,1.92,0,0,0]
[null,null,"Mulas y asnos",null,10,0,0,0,0.9,0,0,0]
[null,null,"Cerdo - porcino",null,1,0,0,0,16,0,0,0]
[null,null,"Aves (gallina -guajolote)",null,1.5714E-4,0,0,0,0.56000000000000005,0,0,0]
[null,null,"TOTAL",null,null,null,{"$f":"SUM(G32:G39)","v":0},{"$f":"SUM(H32:H39)","v":0},null,null,{"$f":"SUM(K32:K39)","v":0},{"$f":"SUM(L32:L39)","v":0}]

{"sheet":"Emisiones de N2O","index":6,"n_rows":59,"n_cols":14,"rows_kept":59,"cut":false,"hidden":false,"merged":[[1,2,1,13],[23,2,23,13],[3,1,3,13],[5,1,5,13],[12,1,12,13],[34,11,35,11],[32,10,33,11],[32,12,33,13],[34,2,35,2],[27,2,27,13],[32,2,33,4],[34,5,35,5],[34,6,35,6],[34,7,35,7],[32,5,33,9]]}
[]
[null,null,"Emisiones directas e indirectas de óxido nitroso \n(suelos gestionados, gestión de estiércol) \ndel municipio de [incluir el nombre del municipio]"]
[null,"Explicación"]
[null,"Esta hoja de cálculo se basa en el uso de la Guía metodológica para Agricultura, Bosques y Otros Usos de Suelo (Agriculture, Forestry and Other Land Use, AFOLU, por sus siglas en ingles) publicada por IPCC (2006) para la parte agrícola, y la Guía de buenas prácticas IPCC (2003)."]
[]
[null,"En esta hoja se juntan las subcategorías \"Tierras de cultivo\", \"Aplicación de urea\", \"Emisiones directas de N2O de los suelos gestionados\", y \"Emisiones indirectas de N2O de los suelos gestionados\", porque todas parten de la misma fuente de información."]
[]
[null,"Se tendrán que seleccionar los cultivos que estén presentes con una producción importante en el municipio, dejando en blanco aquéllos que no."]
[]
[null,"Los datos de actividad corresponden a un año (generalmente se utilizan los correspondientes de enero a diciembre)."]
[]
[null,"Datos de actividad"]
[null,"Los datos de actividad para las subcategorías \"Tierras de cultivo\", \"Aplicación de urea\", \"Emisiones directas de N2O de los suelos gestionados\", y \"Emisiones indirectas de N2O de los suelos gestionados\", se obtienen de la siguiente fuente de información:"]
[null,null,"• Servicio de Información Agroalimentaria y Pesquera (SIAP), disponible en https://www.gob.mx/siap"]
[]
[null,"De no estar disponible la información desagregada por municipio en la página del SIAP, se puede solicitar directamente al correo electrónico contacto.siap@siap.gob.mx"]
[]
[null,"Los datos necesarios son:"]
[null,null,"• Toneladas de producción por cultivo"]
[null,null,"• Superficie sembrada por cultivo"]
[]
[null,"Instrucciones"]
[null,null,"• Las celdas en color verde son las que se pueden modificar."]
[null,null,"• Las columnas B y C (las celdas en color verde) se llenan con las toneladas de producción y superficie sembrada por cultivo, obtenidas en el SIAP. En estas mismas columnas se encuentran algunas celdas en color negro; éstas no tendrán que llenarse."]
[null,null,"• Es importante verificar que los datos se ingresen en toneladas (para la producción) y en hectáreas (para la superficie sembrada)."]
[null,null,"• Se podrá dejar sin llenar las celdas correspondientes al tipo de cultivo que no sea representativo en el municipio."]
[null,null,"• Las celdas en color azul se actualizan automáticamente (NO MODIFICAR)."]
[null,null,"• Los datos en las celdas en color gris (columnas D e I correspondientes a los factores de emisión y de conversión) están homologados con los utilizados en el inventario estatal; se recomienda NO MODIFICAR sin consultarlo con el gobierno estatal (SEMADET)."]
[null,null,"• La celda en color rojo es el resultado y se calcula automáticamente (NO MODIFICAR)."]
[]
[]
[]
[null,null,"Cultivos seleccionados en el Inventario Estatal de Gases de Efecto Invernadero (IEGEI), que pueden tomarse como base",null,null,"Relación de kilogramos de fertilizantes nitrogenados aplicados por tonelada o hectárea (utilizados en el IEGEI, y que puede tomarse como base)",{"$nulls":4},"Factor de emsión",null,"Resultado"]
[]
[null,null,"Cultivo","Superficie sembrada","Producción","Factor de conversión de nitrógeno","Unidades","Fuente","Aplicación de nitrógeno","Porcentaje","Factor de emisión","Fuente","Emisiones N₂O","Emisiones N₂O"]
[null,null,null," (ha)"," (toneladas)",null,null,null,"(toneladas)","%","kg N₂O-N/kg N",null,"kg","Gg"]
[null,null,"Maiz grano",null,null,23.8,"kg N/Ton Cultivo","Gavy (s.f.)",{"$f":"E37*F37","v":0},{"$f":"(I37*I$59)/I$58","v":{"$error":"#DIV/0!"}},1.2500000000000001E-2,"FAO",{"$f":"(I37*1000)*K37","v":0},{"$f":"M37/1000000","v":0}]
[null,null,"Maiz forrajero",null,null,23.8,"kg N/Ton Cultivo","Gavy (s.f.)",{"$f":"E38*F38","v":0},{"$f":"(I38*I$59)/I$58","v":{"$error":"#DIV/0!"}},1.2500000000000001E-2,"FAO",{"$f":"(I38*1000)*K38","v":0},{"$f":"M38/1000000","v":0}]
[null,null,"Sorgo grano",null,null,29.8,"kg N/Ton Cultivo","Gavy (s.f.)",0,{"$error":"#DIV/0!"},1.2500000000000001E-2,"FAO",0,0]
[null,null,"Trigo grano",null,null,34.6,"kg N/Ton Cultivo","Gavy (s.f.)",0,{"$error":"#DIV/0!"},1.2500000000000001E-2,"FAO",0,0]
[null,null,"Frijol",null,null,17.2,"kg N/Ton Cultivo","Gavy (s.f.)",0,{"$error":"#DIV/0!"},0.01,"PEACC",0,0]
[null,null,"Sorgo forrajero verde",null,null,29.8,"kg N/Ton Cultivo","Gavy (s.f.)",0,{"$error":"#DIV/0!"},1.2500000000000001E-2,"FAO",0,0]
[null,null,"Cebada forrajera en verde",null,null,31.3,"kg N/Ton Cultivo","Gavy (s.f.)",0,{"$error":"#DIV/0!"},1.2500000000000001E-2,"FAO",0,0]
[null,null,"Arroz palay",null,null,16,"kg N/Ton Cultivo","Gavy (s.f.)",0,{"$error":"#DIV/0!"},3.0000000000000001E-3,"PEACC",0,0]
[null,null,"Maiz grano semilla",null,null,23.8,"kg N/Ton Cultivo","Gavy (s.f.)",0,{"$error":"#DIV/0!"},1.2500000000000001E-2,"FAO",0,0]
[null,null,"Cebada grano",null,null,31.3,"kg N/Ton Cultivo","Gavy (s.f.)",0,{"$error":"#DIV/0!"},1.2500000000000001E-2,"FAO",0,0]
[null,null,"Trigo forrajero verde",null,null,34.6,"kg N/Ton Cultivo","Gavy (s.f.)",0,{"$error":"#DIV/0!"},1.2500000000000001E-2,"FAO",0,0]
[null,null,"Soya",null,null,87.5,"kg N/Ton Cultivo","Gavy (s.f.)",0,{"$error":"#DIV/0!"},1.2500000000000001E-2,"FAO",0,0]
[null,null,"Caña de azúcar",null,null,150,"kg N/Hectárea-año","CONADESUCA (2015)",{"$f":"D49*F49","v":0},{"$error":"#DIV/0!"},1.2500000000000001E-2,"FAO",0,0]
[null,null,"Caña de azúcar semilla",null,null,150,"kg N/Hectárea-año","CONADESUCA (2015)",{"$f":"D50*F50","v":0},{"$error":"#DIV/0!"},1.2500000000000001E-2,"FAO",0,0]
[null,null,"Agave",null,null,434,"kg N/Hectárea-año","Zúñiga (2013)",0,{"$error":"#DIV/0!"},1.2500000000000001E-2,"FAO",0,0]
[null,null,"Aguacate",null,null,192,"kg N/Hectárea-año","Hamlet  (s.f)",0,{"$error":"#DIV/0!"},1.2500000000000001E-2,"FAO",0,0]
[null,null,"Blueberry",null,null,52,"kg N/Hectárea-año","SEDER (2014)",0,{"$error":"#DIV/0!"},1.2500000000000001E-2,"FAO",0,0]
[null,null,"Zarzamora",null,null,52,"kg N/Hectárea-año","SEDER (2014)",0,{"$error":"#DIV/0!"},1.2500000000000001E-2,"FAO",0,0]
[null,null,"Frambuesa",null,null,52,"kg N/Hectárea-año","SEDER (2014)",0,{"$error":"#DIV/0!"},1.2500000000000001E-2,"FAO",0,0]
[null,null,"Pastos y forrajes",null,null,13,"kg N/Hectárea-año","Villanueva (2004)",0,{"$error":"#DIV/0!"},1.2500000000000001E-2,"FAO",0,0]
[null,null,"Otros cultivos",null,null,"SIN DATO"]
[null,null,"Total",{"$f":"SUM(D37:D57)","v":0},{"$f":"SUM(E37:E57)","v":0},null,null,null,{"$f":"SUM(I37:I56)","v":0},{"$f":"SUM(J37:J56)","v":{"$error":"#DIV/0!"}},null,null,null,{"$f":"SUM(N37:N56)","v":0}]
[{"$nulls":8},100,"%"]

{"sheet":"Quema de biomasa","index":7,"n_rows":35,"n_cols":16,"rows_kept":35,"cut":false,"hidden":false,"merged":[[1,2,1,15],[27,2,28,2],[30,3,31,3],[30,6,31,6],[30,2,31,2],[3,1,3,15],[4,1,4,15]]}
[]
[null,null,"Emisiones de GEI por quema de biomasa (residuos agrícolas, cosecha de caña) \ndel municipio de  [incluir el nombre del municipio]"]
[null,"Explicación"]
[null,"Esta hoja de cálculo se basa en el uso de la Guía metodológica para Agricultura, Bosques y Otros Usos de Suelo (Agriculture, Forestry and Other Land Use, AFOLU, por sus siglas en inglés) publicada por IPCC (2006) para la parte agrícola, y la Guía de buenas prácticas IPCC (2003)."]
[null,"En esta subcategoría se calculan las emisiones provenientes a la quema de biomasa para la cosecha de los cultivos. En el caso se Jalisco esta práctica sólo se utiliza en la caña de azúcar. Si en el municipio la siembra de caña no representa un dato representativo, o su cosecha se realiza en verde (con maquinaria, sin utilizar la quema), esta hoja se deja sin llenar."]
[]
[null,"Los datos de actividad corresponden a un año (generalmente se utilizan de enero a diciembre)."]
[]
[null,"Datos de actividad"]
[null,"Los datos de actividad para la subcategoría \"Quema de biomasa\" se obtienen de la siguiente fuente de información:"]
[null,null,"• Servicio de Información Agroalimentaria y Pesquera (SIAP) disponible en https://www.gob.mx/siap"]
[]
[null,"De no estar disponible la información desagregada por municipio en la página del SIAP, se puede solicitar directamente al correo electrónico contacto.siap@siap.gob.mx"]
[]
[null,"Los datos necesarios son:"]
[null,null,"• Producción anual de caña de azúcar"]
[null,null,"• Superficie cosechada de caña de azúcar"]
[]
[null,"Instrucciones"]
[null,null,"• Las celdas en color verde son las que se pueden modificar."]
[null,null,"• Las columnas B y C (en color verde) se llenan con las toneladas de producción y superficie cosechada de la caña de azúcar obtenidas en el SIAP."]
[null,null,"• Es importante verificar que los datos se ingresen en toneladas (para la producción) y en hectáreas (para la superficie cosechada)."]
[null,null,"• Se podrá dejar sin llenar esta hoja si la cosecha de caña de azúcar no es representativa o se realiza en verde en el municipio."]
[null,null,"• Las celdas en color azul se actualizan automáticamente (NO MODIFICAR)."]
[null,null,"• Los datos en las celdas en color gris están homologados con los utilizados en el inventario estatal. Se recomienda NO MODIFICAR sin consultarlo con el gobierno estatal (SEMADET)."]
[null,null,"• La celda en color rojo es el resultado y se calcula automáticamente (NO MODIFICAR)."]
[]
[null,null,"Cultivo","Producción anual","Superficie cosechada","Relación residuo/cosecha","Cantidad de residuo","Fracción de materia seca","Cantidad de materia seca","Fracción quemada en campo","Fracción oxidada","Total de biomasa quemada","Fracción de carbono","Total de carbono liberado","Relación carbono-nitrógeno","Total de nitrógeno liberado"]
[null,null,null,"(ton. cultivo)","(hectáreas)",null,"(ton. biomasa residual)",null,"(ton. biomasa seca)",null,null,"(ton. biomasa quemada)",null,"(ton. de carbono)",null,"(ton. de nitrógeno)"]
[null,null,"Caña de azúcar",null,null,0.16,{"$f":"D30*F30","v":0},0.1,{"$f":"G30*H30","v":0},1,0.9,{"$f":"I30*J30*K30","v":0},0.40720000000000001,{"$f":"L30*M30","v":0},0.01,{"$f":"N30*O30","v":0}]
[null,null,"Gas/compuesto","Relación de emisiones","Factor de emisión PM2.5","Emisiones","Relación de conversión","Factor de especiación","Emisiones totales GEI","Emisiones totales GEI","Emisiones totales CN","Emisiones totales CN"]
[{"$nulls":4},"(Kg/ha)","(ton. de C o N)",null,"(%)","Toneladas","Gg","Kg","Toneladas"]
[null,null,"CH₄",5.0000000000000001E-3,null,{"$f":"N30*D33","v":0},"16/12",null,{"$f":"F33*(16/12)","v":0},{"$f":"I33/1000","v":0}]
[null,null,"N₂O",7.0000000000000001E-3,null,{"$f":"P30*D34","v":0},"44/28",null,{"$f":"F34*(44/28)","v":0},{"$f":"I34/1000","v":0}]
[null,null,"CN",null,324,null,null,".095",null,null,{"$f":"E30*E35*H35","v":0},{"$f":"K35/1000","v":0}]

{"sheet":"Cultivo de arroz","index":8,"n_rows":31,"n_cols":7,"rows_kept":31,"cut":false,"hidden":false,"merged":[[28,2,29,2],[28,5,28,6],[2,2,2,16],[4,1,4,16],[8,1,8,16],[9,1,9,16]]}
[]
[]
[null,null,"Emisiones de GEI por cultivo de arroz del municipio de  [incluir el nombre del municipio]"]
[null,"Explicación"]
[null,"Esta hoja de cálculo se basa en el uso de la Guía metodológica para Agricultura, Bosques y Otros Usos de Suelo (Agriculture, Forestry and Other Land Use, AFOLU, por sus siglas en inglés) publicada por IPCC (2006) para la parte agrícola, y la Guía de buenas prácticas IPCC (2003)."]
[]
[null,"Las emisiones por quema de biomasa pertenecen a la categoría  \"AFOLU\", subcategoría  \"Fuentes agregadas y fuentes de emisión no CO2 en la tierra\"."]
[]
[null,"En esta subcategoría se calculan las emisiones provenientes al cultivo de arroz por la inundación de los predios y la descomposición de la biomasa. Si en el municipio el cultivo de arroz no es representativo esta hoja se deja sin llenar."]
[null,"Los datos de actividad corresponden a un año (generalmente se utilizan de enero a diciembre)."]
[]
[null,"Datos de actividad"]
[null,"Los datos de actividad para la subcategoría \"Cultivo de arroz\" se obtienen de la siguiente fuente de información:"]
[null,"•","Servicio de Información Agroalimentaria y Pesquera (SIAP) disponible en https://www.gob.mx/siap"]
[null,"De no estar disponible la información desagregada por municipio en la página del SIAP, se puede solicitar directamente al correo electrónico contacto.siap@siap.gob.mx"]
[]
[null,"Los datos necesarios son:"]
[null,"•","Superficie cosechada de arroz"]
[]
[null,"Instrucciones"]
[null,"•","Las celdas en color verde son las que se pueden modificar."]
[null,"•","La columna B (en color verde) se llena con la superficie cosechada arroz obtenida del SIAP."]
[null,"•","Es importante verificar que los datos se ingresen en hectáreas."]
[null,"•","Se podrá dejar sin llenar esta hoja si la cosecha de arroz no es en el municipio."]
[null,"•","La celda en color azul se actualiza automáticamente (NO MODIFICAR)."]
[null,"•","El factor de emisión en la celda en color gris está homologado con el utilizado en el inventario estatal, se recomienda NO MODIFICAR sin consultarlo con el gobierno estatal (SEMADET)."]
[null,"•","La celda en color rojo es el resultado y se calcula automáticamente (NO MODIFICAR)."]
[]
[null,null,"Cultivo","Superficie cosechada","Factor de emisión","Emisiones de metano"]
[null,null,null,"ha","kg CH₄/ha-día (180 días)","Kg","Gg"]
[null,null,"Arroz",null,1.3,{"$f":"D31*E31","v":0},{"$f":"F31/1000","v":0}]

{"sheet":"Tratamiento de Residuos Sólidos","index":9,"n_rows":45,"n_cols":11,"rows_kept":45,"cut":false,"hidden":false,"merged":[[2,2,2,10],[31,2,32,2],[31,3,31,4],[4,1,4,10],[12,1,12,10],[15,1,16,10],[36,9,36,10],[42,3,42,4],[42,2,43,2],[37,3,37,4],[37,2,38,2],[36,5,36,8]]}
[]
[]
[null,null,"Emisiones de GEI por manejo de residuos solidos (eliminación, tratamiento biológico, incineración) del municipio de  [incluir nombre del municipio]"]
[null,"Explicación"]
[null,"Esta categoría contempla las emisiones del tratamiento y eliminación de residuos sólidos. De acuerdo con las directrices del IPCC 2006, las subcategorías estimadas son la eliminación de desechos sólidos, el tratamiento biológico de los desechos sólidos y la incineración de desechos."]
[]
[null,"La información de estas subcategorías se obtiene de fuentes municipales y federales como:"]
[null,"•","Información estadística estatal sobre generación de residuos de INEGI"]
[null,"•","Bases de datos de tratamiento de residuos sólidos de los municipios"]
[null,"Los datos de actividad corresponden a 1 año (generalmente se utilizan de enero a diciembre)."]
[]
[null,"Datos de actividad"]
[null,"Los datos de actividad para las subcategorías de Eliminación de desechos sólidos, tratamiento biológico de desechos sólidos e Incineración de desechos se obtiene de la siguiente fuente de información:"]
[null,"•","Bases de datos de tratamiento de residuos sólidos de los municipios"]
[]
[null,"Todos los municipios están obligados a entregar esta información al gobierno del estado, por lo que tendrá que estar disponible en cada municipio en el área correspondiente a la gestión de residuos sólidos"]
[]
[null,"Los datos necesarios son:"]
[null,"•","Cantidad anual depositada para la eliminación de desechos sólidos"]
[null,"•","Cantidad anual total tratada por instalaciones de tratamiento biológico"]
[null,"•","Cantidad anual total incinerada"]
[]
[null,"Instrucciones"]
[null,"•","La celda en color verde son las que se pueden modificar."]
[null,"•","La columna B (en color verde) se llena con las cantidades anuales depositadas, tratadas e incineradas obtenidas del municipio."]
[null,"•","Es importante verificar que los datos se ingresen en toneladas."]
[null,"•","Las celdas en color azul se actualizan automáticamente (NO MODIFICAR)."]
[null,"•","Las celdas en color gris están homologadas con los datos utilizados en el inventario estatal, se recomienda NO MODIFICAR sin consultarlo con el gobierno estatal (SEMADET)."]
[null,"•","La celda en color rojo es el resultado y se calcula automáticamente (NO MODIFICAR)."]
[]
[]
[null,null,"   4.A - Eliminación de desechos sólidos","Cantidad anual depositada",null,"Factor de equivalencia","Fracción de carbono en la materia seca","Fracción de carbón fósil en el carbono total","Factor de oxidación","Factor de conversión","Emisiones de CO₂"]
[null,null,null,"(Toneladas)","(Gigagramos)","(fracción)","(fracción)","(fracción)","(fracción)","44/12","(Gg CO₂)"]
[null,null,"Residuos sólidos urbanos",null,{"$f":"D34/1000","v":0},1,0.6,0.4,1,{"$f":"44/12","v":3.6666666666666665},{"$f":"E34*F34*G34*H34*I34*J34","v":0}]
[]
[]
[{"$nulls":5},"METANO",null,null,null,"ÓXIDO NITROSO"]
[null,null,"   4.B - Tratamiento biológico de los desechos sólidos","Cantidad anual total tratada por instalaciones de tratamiento biológico",null,"Factor de emisión metano","Generación anual de metano","Metano recuperado por año","Emisiones anuales de metano","Factor de emisión óxido nitroso","Emisiones anuales de óxido nitroso"]
[null,null,null,"(Toneladas)","(Gigagramos)","(g CH₄/Kg residuo tratado)","(Gg CH4)","(Gg CH4)","(Gg CH4)","(g N2O/kg residuos tratados)","(Gg N2O)"]
[null,null,"Composta",null,{"$f":"D40/1000","v":0},4,{"$f":"E40*F40*0.001","v":0},0,{"$f":"G40-H40","v":0},0.3,{"$f":"E40*J40*0.001","v":0}]
[]
[]
[null,null,"   4.C - Incineración e incineración abierta de desechos","Cantidad anual total incinerada",null,"Contenido de materia seca","Fracción de carbono en la materia seca","Fracción de carbón fósil en el carbono total","Factor de oxidación","Factor de conversión","Emisiones de CO₂"]
[null,null,null,"(Toneladas)","(Gigagramos)","(fracción)","(fracción)","(fracción)","(fracción)","44/12","(Gg CO2)"]
[null,null,"Residuos clínicos",null,{"$f":"D45/1000","v":0},1,0.6,0.4,1,{"$f":"44/12","v":3.6666666666666665},{"$f":"E45*F45*G45*H45*I45*J45","v":0}]

{"sheet":"Tratamiento Aguas Residuales","index":10,"n_rows":55,"n_cols":17,"rows_kept":55,"cut":false,"hidden":false,"merged":[[2,2,2,16],[35,2,35,16],[36,2,36,16],[4,1,4,16]]}
[]
[]
[null,null,"Emisiones de GEI por tratamiento y eliminación de aguas residuales domésticas\ndel municipio de  [incluir nombre del municipio]"]
[null,"Explicación"]
[null,"Esta subcategoría contempla las emisiones del tratamiento de aguas residuales. De acuerdo con las Directrices del IPCC (2006), las subcategorías estimadas  \"Tratamiento y eliminación de aguas residuales domésticas\" y \"Tratamiento y eliminación de aguas residuales industriales\"."]
[]
[null,"La información de estas subcategorías se obtiene de fuentes municipales, estatales y federales, como:"]
[null,"• ","Bases de datos de tratamiento de aguas residuales de los municipios"]
[null,"• ","COA Federal de SEMARNAT"]
[null,"• ","COA Estatal de SEMADET "]
[null,"• ","Inventario de plantas de tratamiento de agua de CONAGUA"]
[null,"Los datos de actividad corresponden a un año (generalmente se utilizan de enero a diciembre)."]
[]
[null,"Datos de actividad"]
[null,"Los datos de actividad para las subcategorías \"Tratamiento y eliminación de aguas residuales domésticas\" y \"Tratamiento y eliminación de aguas residuales industriales\" se obtiene de las siguientes fuentes de información:"]
[null,"• ","Bases de datos de tratamiento de aguas residuales de los municipios"]
[null,"• ","Datos de actividad a nivel instalación (COA Federal)"]
[null,"• ","o Emisiones GEI recalculadas"]
[null,"• ","Sistema Nacional de Información Ambiental y de Recursos Naturales (SNIARN) de la SEMARNAT"]
[null,"• ","Inventario de plantas de tratamiento de la Comisión Estatal del Agua (CEA)"]
[null,"• ","Inventario de plantas de tratamiento de CONAGUA"]
[]
[null,"Los datos necesarios son (columnas A, B, C, D, E y F):"]
[null,"• ","Municipio"]
[null,"• ","Localidad"]
[null,"• ","Nombre de la planta"]
[null,"• ","Proceso utilizado"]
[null,"• ","Capacidad instalada"]
[null,"• ","Caudal tratado"]
[]
[null,"Instrucciones"]
[null,"• ","Las celdas en color verde son las que se pueden modificar."]
[null,"• ","Las columnas A, B, C, E, y F (en color verde) se llenan con la información anual recabada."]
[null,"• ","En la columna D (en color gris) se tiene que seleccionar el tipo de proceso que se utiliza para el tratamiento. "]
[null,"• ","Es importante verificar que los datos se ingresen en las unidades solicitadas en cada columna."]
[null,"• ","El Gobierno del estado de Jalisco, a través de la Dirección de Gestión Transversal ante el Cambio Climático de la SEMADET, está obligado a actualizar su inventario de GyCEI, por lo cual se recomienda que la primera consulta se haga a esta dependencia; probablemente dicha información esté disponible por municipio. "]
[null,"• ","En el caso de que la información no esté disponible con la SEMADET, se recomienda consultar a la Comisión Estatal del Agua de Jalisco; probablemente en esa dependencia se encuentra toda la información necesaria. Se puede consultar la página https://www.ceajalisco.gob.mx/contenido/plantas_tratamiento/, y sólo se eligen las las plantas de tratamiento de aguas residuales que estén en operación en el año del inventario."]
[null,"• ","Las celdas en color azul se actualizan automáticamente (NO MODIFICAR)."]
[null,"• ","Las celdas en color gris están homologadas con los datos utilizados en el inventario estatal; se recomienda NO MODIFICAR sin consultarlo con el gobierno estatal (SEMADET)."]
[null,"• ","La celda en color rojo es el resultado y se calcula automáticamente (NO MODIFICAR)."]
[]
[null,null,"Municipio","Localidad","Nombre de planta","Proceso","Capacidad instalada (l/s)","Caudal tratado (l/s)","Caudal anual (mᶟ)","DBO (kg/mᶟ)","FACTOR DE EMISION \n(kg CH₄ / kg DBO)","Fracc. de remoción de lodos","Fracc. población urbana","Fracc. población rural","Factor de corrección para la DBO5 (Colectado)","Emisiones t CH₄","Emisiones Gg CH₄"]
[{"$nulls":5},"Aerobio",null,null,{"$f":"(H43*(24*60*60)*365)/1000","v":0},0.24399999999999999,0.47221274316939876,0.85,0.77205940763176018,0.2279405923682398,1.25,{"$f":"((((I43*J43*(1-L43))*M43*O43)+((I43*J43*(1-L43))*N43))*K43)/1000","v":0},{"$f":"P43/1000","v":0}]
[{"$nulls":5},"Discos biológicos o Biodiscos",null,null,{"$f":"(H44*(24*60*60)*365)/1000","v":0},0.24399999999999999,0.18,0.85,0.77205940763176018,0.2279405923682398,1.25,{"$f":"((((I44*J44*(1-L44))*M44*O44)+((I44*J44*(1-L44))*N44))*K44)/1000","v":0},{"$f":"P44/1000","v":0}]
[{"$nulls":5},"Dual",null,null,0,0.24399999999999999,0.42499146885245898,0.85,0.77205940763176018,0.2279405923682398,1.25,0,0]
[{"$nulls":5},"Filtros biológicos o Rociadores o Percoladores",null,null,0,0.24399999999999999,0.18,0.85,0.77205940763176018,0.2279405923682398,1.25,0,0]
[{"$nulls":5},"Fosa séptica",null,null,0,0.24399999999999999,4.918032786885246,0,0.77205940763176018,0.2279405923682398,1.25,0,0]
[{"$nulls":5},"Humedales (Wetland)",null,null,0,0.24399999999999999,0.48,0.7,0.84687509599478938,0.15312490400521064,1.25,0,0]
[{"$nulls":5},"Lagunas de estabilización",null,null,0,0.24399999999999999,1.0576194754098363,0.7,0.77205940763176018,0.2279405923682398,1.25,0,0]
[{"$nulls":5},"Lodos activados",null,null,0,0.24399999999999999,0.47221274316939876,0.85,0.77205940763176018,0.2279405923682398,1.25,0,0]
[{"$nulls":5},"Primario o Sedimentación",null,null,{"$f":"(H51*(24*60*60)*365)/1000","v":0},0.24399999999999999,0.48,0.7,0.77205940763176018,0.2279405923682398,1.25,{"$f":"((((I51*J51*(1-L51))*M51*O51)+((I51*J51*(1-L51))*N51))*K51)/1000","v":0},0]
[{"$nulls":5},"Rafa o Wasb",null,null,0,0.24399999999999999,1.4972677595628419,0.7,0.77205940763176018,0.2279405923682398,1.25,0,0]
[{"$nulls":5},"Tanque Imhoff + Filtro biológico",null,null,{"$f":"(H53*(24*60*60)*365)/1000","v":0},0.24399999999999999,1.5022303278688529,0.7,0.77205940763176018,0.2279405923682398,1.25,{"$f":"((((I53*J53*(1-L53))*M53*O53)+((I53*J53*(1-L53))*N53))*K53)/1000","v":0},0]
[{"$nulls":5},"Zanjas de oxidación",null,null,0,0.24399999999999999,0.94442548633879753,0.7,0.77205940763176018,0.2279405923682398,1.25,0,0]
[{"$nulls":15},"Total",{"$f":"SUM(Q43:Q54)","v":0}]

{"sheet":"Resultados Resumen","index":11,"n_rows":35,"n_cols":11,"rows_kept":35,"cut":false,"hidden":false,"merged":[[1,2,1,10],[31,2,31,3],[13,9,15,9],[16,9,21,9],[27,5,29,5],[22,2,25,2],[18,3,21,3],[16,3,17,3],[22,9,25,9],[12,2,12,4],[13,2,15,2],[13,3,15,3],[16,2,21,2]]}
[]
[null,null,"Resultados (resumen) emisiones de compuestos y gases de efecto invernadero \ndel municipio de  [incluir nombre del municipio]"]
[null,"Explicación"]
[null,"Esta hoja presenta los resultados de forma resumida. Está ligada automáticamente con todas las hojas anteriores. Para evitar errores es necesario seguir las siguientes instrucciones."]
[]
[null,"Instrucciones"]
[null,null,"• En esta hoja ninguna celda se tiene que modificar."]
[null,null,"• Las únicas excepciones pueden ser las celdas en color gris, si es que se presenta una actualización en los potenciales de calentamiento global. Se recomienda NO MODIFICAR sin consultarlo con el gobierno estatal (SEMADET)."]
[null,null,"• Las celdas en color azul se actualizan automáticamente (NO MODIFICAR)."]
[null,null,"• Las celdas en color rojo son los resultados y cada celda está ligada con la hoja de cálculo correspondiente (NO MODIFICAR)."]
[null,null,"• En la siguiente hoja, llamada “Tablas y gráficas”, se encuentran algunas tablas y gráficas que pueden ser copiadas directamente en el Programa Municipal de Cambio Climático."]
[]
[null,null,"Sectores y subsectores (según metodología IPCC, 2006)",null,null,"CO₂ (Gg)","CH₄ (Gg)","N₂O (Gg)","CO₂e (Gg)","Por sector (Gg CO₂e)","Cálculo de CN (t)"]
[null,null,"Energía","Actividades de quema de combustibles","Transporte terrestre",{"$f":"Transporte!P36","v":0},{"$f":"Transporte!Q36","v":0},{"$f":"Transporte!R36","v":0},{"$f":"(F14)+(G14*H$29)+(H14*H$30)","v":0},{"$f":"I14+I15+I16","v":0},{"$f":"Transporte!S36","v":0}]
[{"$nulls":4},"Otros sectores (consumo de combustibles por operación del municipio)",{"$f":"'Otros (energía), combustibles'!R48","v":0},{"$f":"'Otros (energía), combustibles'!R49","v":0},{"$f":"'Otros (energía), combustibles'!R50","v":0},{"$f":"(F15)+(G15*H$29)+(H15*H$30)","v":0},null,{"$f":"'Otros (energía), combustibles'!R51","v":0}]
[{"$nulls":4},"Otros sectores (consumo de energía eléctrica por operación del municipio)",{"$f":"'Otros (energía), E. eléctrica'!I121","v":0},null,null,{"$f":"(F16)","v":0}]
[null,null,"Agricultura, Silvicultura y Otros Usos de la Tierra","Ganadería","Fermentación entérica",null,{"$f":"'Ferm. entérica, G. de estiércol'!H40","v":0},null,{"$f":"(G17*H$29)","v":0},{"$f":"SUM(I17:I22)","v":0}]
[{"$nulls":4},"Gestión del estiércol",null,{"$f":"'Ferm. entérica, G. de estiércol'!L40","v":0},null,{"$f":"(G18*H$29)","v":0}]
[null,null,null,"Fuentes agregadas y fuentes de emisión no CO₂ en la tierra","Emisiones de la quema de biomasa",null,{"$f":"'Quema de biomasa'!J33","v":0},{"$f":"'Quema de biomasa'!J34","v":0},{"$f":"(G19*H$29)+(H19*H$30)","v":0},null,{"$f":"'Quema de biomasa'!L35","v":0}]
[{"$nulls":4},"Emisiones de N₂O de los suelos gestionados",null,null,{"$f":"'Emisiones de N2O'!N58","v":0},{"$f":"(H20*H$30)","v":0}]
[{"$nulls":4},"Emisiones indirectas de N₂O resultantes de la gestión del estiércol",null,{"$f":"'Ferm. entérica, G. de estiércol'!L40","v":0},null,{"$f":"(G21*H$29)","v":0}]
[{"$nulls":4},"Cultivo de arroz",null,{"$f":"'Cultivo de arroz'!G31","v":0},null,{"$f":"(G22*H$29)","v":0}]
[null,null,"Desechos","Eliminación de desechos sólidos",null,{"$f":"'Tratamiento de Residuos Sólidos'!K34","v":0},null,null,{"$f":"(F23)","v":0},{"$f":"SUM(I23:I26)","v":0}]
[null,null,null,"Tratamiento biológico de los desechos sólidos",null,null,{"$f":"'Tratamiento de Residuos Sólidos'!I40","v":0},{"$f":"'Tratamiento de Residuos Sólidos'!K40","v":0},{"$f":"(G24*H$29)+(H24*H$30)","v":0}]
[null,null,null,"Incineración e incineración abierta de desechos",null,{"$f":"'Tratamiento de Residuos Sólidos'!K45","v":0},null,null,{"$f":"(F25)","v":0}]
[null,null,null,"Tratamiento y eliminación de aguas residuales","Tratamiento y eliminación de aguas residuales domésticas e industriales",null,{"$f":"'Tratamiento Aguas Residuales'!Q55","v":0},null,{"$f":"(G26*H$29)","v":0}]
[null,null,"TOTAL",null,null,{"$f":"SUM(F14:F25)","v":0},{"$f":"SUM(G14:G26)","v":0},{"$f":"SUM(H14:H24)","v":0},{"$f":"(F27)+(G27*H$29)+(H27*H$30)","v":0},{"$f":"SUM(J14:J26)","v":0},{"$f":"SUM(K14:K19)","v":0}]
[{"$nulls":5},"PCG (100)","CO₂",1]
[{"$nulls":6},"CH₄",28]
[{"$nulls":6},"N₂O",265]
[]
[null,null,"SECTOR"]
[null,null,"ENERGÍA"]
[null,null,"AFOLU",{"$f":"SUM(I17:I22)","v":0}]
[null,null,"DESECHOS",{"$f":"SUM(I23:I26)","v":0}]

{"sheet":"Tablas y Gráficas","index":12,"n_rows":48,"n_cols":5,"rows_kept":48,"cut":false,"hidden":false,"merged":[[1,2,1,4],[10,2,10,4],[36,2,36,3],[37,2,37,3],[31,2,31,3],[32,2,32,3],[4,1,4,4],[23,2,23,3],[38,2,38,3],[27,2,27,3],[28,2,28,3],[13,2,13,3],[20,2,20,3],[21,2,21,3],[22,2,22,3],[35,2,35,3],[33,2,33,3],[34,2,34,3],[14,2,14,3],[15,2,15,3],[16,2,16,3],[26,2,26,3],[29,2,29,3],[30,2,30,3],[43,2,43,3],[44,2,44,3],[45,2,45,3],[46,2,46,3],[39,2,39,3]]}
[]
[null,null,"Tablas y gráficas, emisiones de compuestos y gases de efecto invernadero del municipio de  [incluir nombre del municipio]"]
[]
[null,"Explicación"]
[null,"Esta hoja presenta algunas sugerencias de tablas y gráficas que pueden ser modificadas a conveniencia, y que pueden ser copiadas y pegadas directamente al Programa Municipal de Cambio Climático."]
[]
[null,"Instrucciones"]
[null,"•","Seleccione las tablas y gráficas que crea conveniente pegar en su PMCC."]
[null,"•","Realizar las modificaciones de formato que considere pertinentes."]
[null,"•","Se podrán agregar más tablas y gráficas dependiendo de la necesidad de cada municipio."]
[null,"•","Si algún rubro de los presentados en la tabla aparece sin resultado por no haber utilizado la información correspondiente, se recomienda eliminar toda la FILA para mejorar la presentación de la tabla y de la gráfica."]
[null,"•","Copiar y pegar las tablas y gráficas que se consideren convenientes en su PMCC."]
[]
[null,null,"Sectores (según metodología IPCC, 2006)",null,"Emisiones de GEI (Gg CO₂e)"]
[null,null,"Energía",null,{"$f":"'Resultados Resumen'!J14:J15","v":0}]
[null,null,"Agricultura, Silvicultura y Otros Usos de la Tierra",null,{"$f":"'Resultados Resumen'!D34","v":0}]
[null,null,"Desechos",null,{"$f":"'Resultados Resumen'!D35","v":0}]
[null,null,"TOTAL",null,{"$f":"'Resultados Resumen'!J27","v":0}]
[]
[]
[null,null,"Sectores (según metodología IPCC, 2006)",null,"Emisiones de Carbono Negro (t CN)"]
[null,null,"Energía",null,{"$f":"'Resultados Resumen'!K14+'Resultados Resumen'!K15","v":0}]
[null,null,"Agricultura, Silvicultura y Otros Usos de la Tierra",null,{"$f":"'Resultados Resumen'!K19","v":0}]
[null,null,"TOTAL",null,{"$f":"'Resultados Resumen'!K27","v":0}]
[]
[]
[null,null,"Subsectores (según metodología IPCC, 2006)",null,"Emisiones de GEI (Gg CO₂e)"]
[null,null,"Transporte terrestre",null,{"$f":"'Resultados Resumen'!I14","v":0}]
[null,null,"Otros sectores (consumo de combustibles por operación del municipio)",null,{"$f":"'Resultados Resumen'!I15","v":0}]
[null,null,"Otros sectores (consumo de energía eléctrica por operación del municipio)",null,{"$f":"'Resultados Resumen'!I16","v":0}]
[null,null,"Fermentación entérica",null,{"$f":"'Resultados Resumen'!I17","v":0}]
[null,null,"Gestión del estiércol",null,{"$f":"'Resultados Resumen'!I18","v":0}]
[null,null,"Emisiones de la quema de biomasa",null,{"$f":"'Resultados Resumen'!I19","v":0}]
[null,null,"Emisiones de N₂O de los suelos gestionados",null,{"$f":"'Resultados Resumen'!I20","v":0}]
[null,null,"Emisiones indirectas de N₂O resultantes de la gestión del estiércol",null,{"$f":"'Resultados Resumen'!I21","v":0}]
[null,null,"Cultivo de arroz",null,{"$f":"'Resultados Resumen'!I22","v":0}]
[null,null,"Eliminación de desechos sólidos",null,{"$f":"'Resultados Resumen'!I23","v":0}]
[null,null," Tratamiento biológico de los desechos sólidos",null,{"$f":"'Resultados Resumen'!I24","v":0}]
[null,null,"Incineración e incineración abierta de desechos",null,{"$f":"'Resultados Resumen'!I25","v":0}]
[null,null,"Tratamiento y eliminación de aguas residuales domésticas e industriales",null,{"$f":"'Resultados Resumen'!I26","v":0}]
[null,null,"TOTAL",null,{"$f":"'Resultados Resumen'!I27","v":0}]
[]
[]
[null,null,"Gases de Efecto Invernadero",null,"Emisiones (Gg CO₂e)"]
[null,null,"Bióxido de carbono",null,{"$f":"'Resultados Resumen'!F27","v":0}]
[null,null,"Metano",null,{"$f":"'Resultados Resumen'!G27*'Resultados Resumen'!H29","v":0}]
[null,null,"Óxido nitroso",null,{"$f":"'Resultados Resumen'!H27*'Resultados Resumen'!H30","v":0}]
[null,null,"TOTAL",null,{"$f":"'Resultados Resumen'!J42","v":0}]